Cogmind - Beta 11 X6 @@@ ROGUE MODE // 2021.08.12 @ 03:25:26 // AFD2020/Player2 Player: P2 RUN Result: Crushed by singularity! Performance ------------- Evolutions (9) 4500 Regions Visited (36) 7200 Robots Destroyed (278) 1390 Value Destroyed (18131) 18131 Prototype IDs (156) 3120 Alien Tech Used (8) 1600 Bonus (52980) 52980 TOTAL SCORE: 88921 Bonus ------- High Alert Combat Kills 4916 Follower Combat Kills 9332 Network Hubs Disabled 400 Aligned with FarCom 300 Met Data Miner 300 Met Zhirov 300 Met Warlord at Base 500 MAIN.C Attacked Warlord 500 Warlord Defense Kill 2296 Used Core Reset Matrix 3000 Met R17 at Research 2000 Destroyed MAIN.C Guards 500 Met MAIN.C 5000 Destroyed MAIN.C Shell 5000 Destroyed MAIN.C 10000 Met Warlord at Command 2000 Met Architect 300 Destroyed A8 300 Destroyed A6 400 Destroyed A2 1000 Destroyed Architect 15000 Friendly Fire -10364 Cogmind --------- Core Integrity 0/1600 Matter 63/300 Energy 100/100 System Corruption 0% Temperature Cool (0) Movement Core (50) Location -1/Access_0 Parts ------- > --- POWER (2) -------- (None) > --- PROPULSION (6) --- (None) > --- UTILITY (13) ----- (None) > --- WEAPON (4) ------- (None) > --- INVENTORY (5) ---- Vortex Catalyst Activator (8) Peak State ------------ > --- POWER ------------ Vortex Chain Reactor > --- PROPULSION ------- Enhanced Armored Heavy Treads Enhanced Armored Heavy Treads High-density Centrium Heavy Treads > --- UTILITY ---------- 2N-1CE's Frost Array Huge Storage Unit Spectral Analyzer Experimental Targeting Computer Experimental Targeting Computer Experimental Targeting Computer Experimental Targeting Computer Advanced Phase Shifter Experimental Utility Shielding Centrium Heavy Armor Plating Experimental Focal Shield Experimental Force Field > --- WEAPON ----------- Improved Potential Cannon Sigix Broadsword > --- INVENTORY -------- Spiked Medium Treads Experimental Energy Well Experimental Energy Well Experimental Energy Well Dimensional Manipulator Matter Filter Precision Matter Filter Energy Filter EM Dispersion Field System Purifier Drone Bay High-powered Transdimensional Reconstructor Enhanced Nova Cannon Improved Potential Cannon Tri-rail Accelerator Compact Mass Driver Perforator Vortex Catalyst Activator Z-bomb Delivery System Meganuke [Rating: 252] Favorites ----------- Power Vortex Chain Reactor Engine Cooled Ion Engine Power Core Enhanced Fission Core Reactor Vortex Chain Reactor Propulsion Centrium Heavy Treads Treads Centrium Heavy Treads Leg Aluminum Leg Wheel Armored Huge Wheel Hover Unit Improved Airjet Flight Unit Improved Flight Unit Utility Experimental Targeting Computer Device Advanced Kinecellerator Storage Huge Storage Unit Processor Experimental Targeting Computer Hackware System Mapper Protection Medium Reactive Plating Weapon Tri-rail Accelerator Energy Gun Medium Laser Energy Cannon Improved Potential Cannon Ballistic Gun Autogun Ballistic Cannon Tri-rail Accelerator Launcher Rocket Launcher Special Weapon Mining Laser Impact Weapon Core Stripper Slashing Weapon Sigix Broadsword Special Melee Weapon Advanced Datajack Build | -11 -10 -10 -9 -9 -9 -8 -8 -8 -7 -7 -7 -7 -6 -6 -6 -6 -6 -6 -5 -5 -5 -5 -4 -4 -4 -4 -4 -3 -3 -3 -2 -2 -2 -1 -1 -1 ------- Run | Scr Mat Min Mat Min Exi Min Mat Sto Fac Low Low Dat Pro Fac Ext Cet Arc Hub Fac Upp Upp Zhi Pro Fac Upp Upp War Pro Res Qua Res Tes Sec Acc Com Ac0 Slots Evolved 18 | . . . 2 . . . 2 . 2 . . . . 2 . . . . 2 . . . . 2 . . . . 2 . 2 . . 2 . . Power 1 | . . . . . . . . . . . . . . . . . . . 1 . . . . . . . . . . . . . . . . . Propulsion 4 | . . . . . . . 2 . . . . . . . . . . . . . . . . . . . . . 1 . 1 . . . . . Utility 11 | . . . 2 . . . . . 2 . . . . 2 . . . . 1 . . . . 2 . . . . 1 . 1 . . . . . Weapon 2 | . . . . . . . . . . . . . . . . . . . . . . . . . . . . . . . . . . 2 . . Parts Attached 392 | 12 6 . 18 6 1 2 15 11 8 2 6 9 2 23 16 2 7 2 14 2 1 3 1 7 . . 19 . 8 17 6 29 12 11 96 18 Power 21 | 1 1 . 1 1 . 1 . 1 . . . . . 1 1 . . . 2 . . 1 . . . . 1 . . . 2 6 . . 1 . Engine 6 | 1 1 . 1 1 . 1 . 1 . . . . . . . . . . . . . . . . . . . . . . . . . . . . Core 4 | . . . . . . . . . . . . . . 1 1 . . . 2 . . . . . . . . . . . . . . . . . Reactor 11 | . . . . . . . . . . . . . . . . . . . . . . 1 . . . . 1 . . . 2 6 . . 1 . Propulsion 47 | 3 . . 2 2 . 1 6 1 1 . . 1 . 3 4 1 2 . 2 . . . . . . . . . 1 4 . 5 . . 8 . Treads 26 | 1 . . . . . . . . . . . . . 2 . 1 2 . 2 . . . . . . . . . 1 4 . 5 . . 8 . Leg 12 | 2 . . 2 2 . 1 1 . . . . . . 1 3 . . . . . . . . . . . . . . . . . . . . . Wheel 7 | . . . . . . . 3 1 1 . . 1 . . 1 . . . . . . . . . . . . . . . . . . . . . Hover 1 | . . . . . . . 1 . . . . . . . . . . . . . . . . . . . . . . . . . . . . . Flight 1 | . . . . . . . 1 . . . . . . . . . . . . . . . . . . . . . . . . . . . . . Utility 222 | 4 2 . 2 2 1 . 4 2 6 2 3 4 . 16 9 1 3 2 9 2 1 2 1 7 . . 6 . 7 9 4 14 9 5 71 12 Device 126 | 3 . . . 1 . . 1 1 4 2 1 3 . 5 4 1 1 . 4 1 . . 1 2 . . 3 . 2 4 4 7 9 4 47 11 Storage 16 | 1 . . . . 1 . . . . . . . . 1 . . . . . 1 . 1 . . . . 1 . . . . 2 . . 7 1 Processor 24 | . 2 . 1 . . . . . 1 . 2 . . 1 . . . . 1 . . . . 2 . . 1 . . 1 . 1 . . 11 . Hackware 14 | . . . 1 . . . 1 1 . . . . . 4 . . . 2 . . . . . . . . . . 4 . . . . 1 . . Protection 42 | . . . . 1 . . 2 . 1 . . 1 . 5 5 . 2 . 4 . 1 1 . 3 . . 1 . 1 4 . 4 . . 6 . Artifact . | . . . . . . . . . . . . . . . . . . . . . . . . . . . . . . . . . . . . . Weapon 102 | 4 3 . 13 1 . . 5 7 1 . 3 4 2 3 2 . 2 . 1 . . . . . . . 12 . . 4 . 4 3 6 16 6 Energy Gun 6 | 2 1 . . . . . 1 1 . . . . . . . . . . . . . . . . . . . . . . . . . . 1 . Energy Cannon 36 | . . . 8 . . . 2 4 1 . 2 1 . . . . . . . . . . . . . . 4 . . 1 . . 2 2 7 2 Ballistic Gun 8 | 1 2 . 2 1 . . . . . . . 1 1 . . . . . . . . . . . . . . . . . . . . . . . Ballistic Cannon 31 | . . . . . . . . 1 . . . . . 2 2 . 1 . 1 . . . . . . . 5 . . 3 . 2 1 3 7 3 Launcher 9 | . . . 3 . . . 2 . . . 1 . . . . . . . . . . . . . . . 3 . . . . . . . . . Special Weapon 1 | 1 . . . . . . . . . . . . . . . . . . . . . . . . . . . . . . . . . . . . Impact Weapon 1 | . . . . . . . . . . . . . . . . . . . . . . . . . . . . . . . . 1 . . . . Slashing Weapon 8 | . . . . . . . . . . . . 2 1 1 . . . . . . . . . . . . . . . . . 1 . 1 1 1 Piercing Weapon . | . . . . . . . . . . . . . . . . . . . . . . . . . . . . . . . . . . . . . Special Melee Weapon 2 | . . . . . . . . 1 . . . . . . . . 1 . . . . . . . . . . . . . . . . . . . Unidentified Prototypes 43 | . . . 1 . . . 2 3 . . . . . 13 . . . . 1 . . 4 . . . . 6 . . . . 4 1 . 8 . Parts Lost 16 | . . . . . . . . . . . . 4 1 . 1 . . . . . 1 . 1 . . . . . . . . . . . 2 6 Power 2 | . . . . . . . . . . . . 1 . . . . . . . . . . . . . . . . . . . . . . . 1 Propulsion 1 | . . . . . . . . . . . . 1 . . . . . . . . . . . . . . . . . . . . . . . . Utility 10 | . . . . . . . . . . . . 1 . . 1 . . . . . 1 . 1 . . . . . . . . . . . 2 4 Weapon 3 | . . . . . . . . . . . . 1 1 . . . . . . . . . . . . . . . . . . . . . . 1 Highest Loss Streak 4 | . . . . . . . . . . . . 4 1 . 1 . . . . . 1 . 1 . . . . . . . . . . . 2 4 Average Slot Usage (%) 80 | . 100 100 97 99 90 94 83 80 76 76 76 70 68 78 75 81 79 80 81 82 81 80 82 81 84 84 82 78 79 79 79 85 81 79 72 67 Engine 2 | . 14 14 11 10 2 5 9 8 7 7 7 2 . . . . . . . . . . . . . . . . . . . . . . . . Core 1 | . . . . . . . . . . . . . . 2 5 6 6 6 10 11 11 7 5 5 5 5 3 . . . . . . . . . Reactor 3 | . . . . . . . . . . . . . . . . . . . . . . 2 5 5 5 5 5 5 4 4 5 7 8 8 5 3 Treads 8 | . . . . . . . . . . . . . . 1 . 4 8 13 10 11 11 11 11 10 10 10 10 10 14 13 13 16 13 12 11 11 Leg 3 | . 28 28 22 22 22 22 8 . . . . . . . 3 2 . . . . . . . . . . . . . . . . . . . . Wheel 2 | . . . . . . . 12 18 15 15 15 15 15 10 5 6 3 . . . . . . . . . . . . . . . . . . . Device 8 | . 1 . . 10 11 11 7 . 7 7 9 11 7 . 2 6 6 1 7 6 11 6 9 14 15 15 13 10 8 12 13 10 12 11 13 10 Storage 5 | . 1 . . . 9 11 9 9 7 7 7 7 7 6 6 6 6 6 5 5 5 8 11 9 5 5 5 10 4 4 4 4 4 4 5 5 Processor 11 | . 25 28 32 23 22 22 5 . . . 11 7 7 6 6 6 6 6 5 5 4 . . 3 10 10 10 10 4 8 8 8 13 12 18 22 Hackware 12 | . . . 9 . . . 1 17 15 15 1 . . 25 23 20 20 28 20 17 17 17 17 15 15 15 15 15 23 19 17 17 17 16 1 . Protection 9 | . . . . 9 1 . 12 9 6 7 7 9 15 10 12 13 13 8 11 15 11 17 12 10 10 10 10 10 13 9 13 14 8 8 8 5 Energy Cannon 2 | . . . 18 1 . . 8 8 7 7 9 9 . . . . . . . . . . . . . . . . . . . . . . 2 3 Ballistic Gun 2 | . 15 28 2 20 22 22 . . . . . 2 10 3 . . . . . . . . . . . . . . . . . . . . . . Ballistic Cannon 2 | . . . . . . . . . . . . . . 2 5 6 3 6 4 5 5 5 5 5 5 5 4 5 4 3 4 3 3 3 . . Slashing Weapon 1 | . . . . . . . . . . . . 2 2 3 . . . . . . . . . . . . . . . . . . . 4 3 3 Naked Turns 22 | . . . . . . . . . . . . . . . . . . . . . . . . . . . . . . . . . . . . 22 Heaviest Build 195 | 12 13 13 20 19 22 25 43 42 55 55 63 63 54 71 77 77 73 73 89 149 145 151 151 155 151 151 162 157 179 179 184 181 171 186 195 192 Greatest Support 260 | 20 20 20 20 20 20 27 56 56 56 56 56 56 28 56 28 28 160 160 160 160 160 160 160 160 160 160 160 160 187 187 187 260 260 260 260 250 Greatest Overweight (x) 2 | . . . 1 . 1 . 1 . . . 1 1 1 2 2 2 2 . . . . . . . . . 1 . . . . . . . 1 . Average Overweight (x) . | . . . . . . . . . . . . . 1 1 2 2 . . . . . . . . . . . . . . . . . . . . Largest Inventory Capacity 25 | 8 8 5 5 5 10 10 10 10 10 10 10 10 10 15 15 15 15 15 15 25 25 25 25 25 25 25 25 25 25 25 25 25 25 25 25 25 Average Capacity 19 | 5 5 5 5 5 9 10 10 10 10 10 10 10 10 14 15 15 15 15 15 24 25 25 25 25 25 25 25 25 25 25 25 25 25 25 25 24 Most Carried 25 | 7 7 5 5 5 10 10 10 10 10 10 10 10 10 15 15 15 15 14 15 19 23 25 25 25 25 24 25 25 25 25 25 25 25 22 25 25 Average Carried 17 | 2 4 4 4 4 7 9 9 9 9 10 9 9 8 10 9 13 14 14 13 17 19 24 24 23 23 23 23 23 21 24 22 24 23 19 22 22 Final Capacity 25 | 8 5 5 5 5 10 10 10 10 10 10 10 10 10 15 15 15 15 15 15 25 25 25 25 25 25 25 25 25 25 25 25 25 25 25 25 5 Final Carried 25 | 7 5 5 5 5 10 10 10 10 10 10 10 10 9 15 10 15 14 14 15 19 23 25 25 24 23 24 23 25 24 24 25 24 24 20 25 2 Class Distribution -------------------- 47% | Wizard-Mutant 16% | Alien-Mutant 14% | Mutant 10% | Wizard-Skirmisher 8% | Hacker-Mutant Dominant Class ---------------- Mutant | -10/Materials Mutant | -10/Mines Mutant | -9/Materials Scavenger-Mutant | -9/Mines Mutant | -9/Exiles Mutant | -8/Mines Mutant | -8/Materials Hacker-Mutant | -8/Storage Hacker-Mutant | -7/Factory Hacker-Mutant | -7/Lower Caves Mutant | -7/Lower Caves Mutant | -7/Data Miner Mutant | -6/Proximity Caves Wizard-Mutant | -6/Factory Wizard-Mutant | -6/Extension Wizard-Mutant | -6/Cetus Wizard-Mutant | -6/Archives Wizard-Mutant | -6/Hub_04(d) Wizard-Mutant | -5/Factory Wizard-Mutant | -5/Upper Caves Wizard-Mutant | -5/Upper Caves Wizard-Mutant | -5/Zhirov Wizard-Mutant | -4/Proximity Caves Wizard-Mutant | -4/Factory Wizard-Skirmisher | -4/Upper Caves Wizard-Skirmisher | -4/Upper Caves Wizard-Skirmisher | -4/Warlord Wizard-Skirmisher | -3/Proximity Caves Wizard-Mutant | -3/Research Wizard-Mutant | -3/Quarantine Wizard-Mutant | -2/Research Wizard-Mutant | -2/Testing Wizard-Mutant | -2/Section 7 Wizard-Mutant | -1/Access Alien-Mutant | -1/Command Alien-Mutant | -1/Access_0 Resources | -11 -10 -10 -9 -9 -9 -8 -8 -8 -7 -7 -7 -7 -6 -6 -6 -6 -6 -6 -5 -5 -5 -5 -4 -4 -4 -4 -4 -3 -3 -3 -2 -2 -2 -1 -1 -1 ----------- Run | Scr Mat Min Mat Min Exi Min Mat Sto Fac Low Low Dat Pro Fac Ext Cet Arc Hub Fac Upp Upp Zhi Pro Fac Upp Upp War Pro Res Qua Res Tes Sec Acc Com Ac0 Matter Collected 9659 | 369 161 53 143 109 46 38 214 82 74 47 124 75 91 534 343 194 283 203 276 127 67 . 254 125 54 56 286 83 120 1024 239 791 353 374 2040 207 Remotely 292 | 292 . . . . . . . . . . . . . . . . . . . . . . . . . . . . . . . . . . . . Salvage Created 10952 | 141 283 68 333 38 . 32 287 101 55 114 65 80 24 222 430 248 148 200 276 87 42 . 131 203 32 117 540 81 106 329 197 1393 466 1001 2494 588 Parts 457 | 11 23 3 31 1 . 2 11 5 2 6 5 7 2 19 19 12 7 5 16 2 3 . 4 6 2 5 16 1 2 6 2 31 29 56 91 14 Haulers Intercepted 5 | . . . 1 . . . 2 1 . . . . . . . . . . . . . . . . . . . . . . . 1 . . . . Recyclers Shooed 5 | . . . . . . . 3 1 . . . . . 1 . . . . . . . . . . . . . . . . . . . . . . Parts Field Recycled . | . . . . . . . . . . . . . . . . . . . . . . . . . . . . . . . . . . . . . Retrieved Matter . | . . . . . . . . . . . . . . . . . . . . . . . . . . . . . . . . . . . . . Parts Self-Destructed 165 | . . . . . . . . . . 15 12 . 13 . . . . . . 8 2 . 8 . 5 9 89 4 . . . . . . . . Prevented 10 | . . . . . . . . . . 1 1 . . . . . . . . . . . . . . . 8 . . . . . . . . . Kills | -11 -10 -10 -9 -9 -9 -8 -8 -8 -7 -7 -7 -7 -6 -6 -6 -6 -6 -6 -5 -5 -5 -5 -4 -4 -4 -4 -4 -3 -3 -3 -2 -2 -2 -1 -1 -1 ------- Run | Scr Mat Min Mat Min Exi Min Mat Sto Fac Low Low Dat Pro Fac Ext Cet Arc Hub Fac Upp Upp Zhi Pro Fac Upp Upp War Pro Res Qua Res Tes Sec Acc Com Ac0 Combat Hostiles Destroyed 220 | . 7 2 9 1 . 2 5 1 1 5 3 1 1 9 6 6 3 5 5 2 2 . 5 4 2 5 15 3 3 10 5 13 10 14 41 14 Melee 1 | . . . . . . . . . . . . 1 . . . . . . . . . . . . . . . . . . . . . . . . Guns 14 | . 7 2 . . . 2 2 . . . . . 1 . . . . . . . . . . . . . . . . . . . . . . . Cannons 164 | . . . 3 1 . . 2 1 1 3 1 . . 9 6 6 3 5 5 2 2 . 5 4 2 5 5 3 3 10 5 12 10 10 34 6 AOE 38 | . . . 6 . . . 1 . . 2 2 . . . . . . . . . . . . . . . 10 . . . . . . 4 7 6 Classes Destroyed 24 | 2 4 . 3 . . . 1 . . . 2 . . 5 1 . . . . . . . . . . . 3 . . . . 1 2 . . . Worker 8 | . 1 . 1 . . . . . . . . . . . . . . . . . . . . . . . . . . . . 1 . 4 1 . Builder 5 | . . . . . . . . . . . . . . 1 1 . . . 1 . . . . . . . . . . . . . 1 1 . . Tunneler 5 | 4 . . . . . . 1 . . . . . . . . . . . . . . . . . . . . . . . . . . . . . Hauler 5 | . . . 1 . . . 2 1 . . . . . . . . . . . . . . . . . . . . . . . 1 . . . . Recycler 8 | 1 . . . . . . . . . . . . . . 2 . . . . . . . . . . . . . . 1 . 3 . . 1 . Mechanic 1 | . . . . . . . . . . . . . . . . . . . . . . . . . . . . . . . . . 1 . . . Operator 8 | . 1 . . . . . . 1 . . . . . . 1 . 3 . . . . . . . . . . . . . . . 2 . . . Watcher 11 | . . . 4 . . . . . . . . . . . . 1 . . 2 . . . . . . . . . . 1 . . . 3 . . Swarmer 44 | . 1 . 6 . . 2 . . . 5 . . 1 2 3 5 . . 1 . . . 2 . 2 4 . . . . . . . 5 5 . Grunt 51 | . 6 2 2 1 . . 4 1 1 . . . . . . . . 2 . 2 . . 1 4 . . 5 2 2 . 2 2 5 4 3 . Brawler 1 | . . . . . . . . . . . . . . . . . . . . . . . . . . . . . . . . . 1 . . . Duelist 3 | . . . . . . . 1 . . . . . . . . . . . . . . . . . . . 1 . . . . . 1 . . . Protector 4 | . . . . . . . . . . . . . . 1 . . . . . . . . . . . . 1 . . . . . 1 . 1 . Researcher 1 | . . . . . . . . . . . . . . . . . . . . . . . . . . . . . . . . . 1 . . . Sentry 19 | . . . 1 . . . . . . . . . . . 2 . 3 2 2 . . . 1 . . 1 . . 1 . 1 2 . 1 2 . Demolisher 3 | . . . . . . . . . . . . . . . . . . . . . . . . . . . 1 . . . . . . . 2 . Specialist 3 | . . . . . . . . . . . . . . 2 . . . . . . . . . . . . . . . . . . . . 1 . Hunter 25 | . . . . . . . . . . . . . . 3 . . . . . . 1 . 1 . . . . . . 2 1 2 . 2 13 . Programmer 29 | . . . . . . . . . . . . . . 1 . . . 1 2 . . . . . . . 4 1 . 1 . 6 1 2 10 . Behemoth 3 | . . . . . . . . . . . . . . . 1 . . . . . . . . . . . . . . . 1 . . . 1 . Cetus Guard 1 | . . . . . . . . . . . . . . . . 1 . . . . . . . . . . . . . . . . . . . . Quarantine Guard 7 | . . . . . . . . . . . . . . . . . . . . . . . . . . . . . . 7 . . . . . . S7 Guard 1 | . . . . . . . . . . . . . . . . . . . . . . . . . . . . . . . . . 1 . . . M Guard 1 | . . . . . . . . . . . . . . . . . . . . . . . . . . . . . . . . . . . 1 . Enhanced Grunt 4 | . . . . . . . . . . . . 1 . . . . . . . . . . . . . . . . . . . . . . . 3 Enhanced Sentry 2 | . . . . . . . . . . . . . . . . . . . . . . . . . . . . . . . . . . . . 2 Enhanced Hunter 8 | . . . . . . . . . . . . . . . . . . . . . . . . . . . . . . . . . . . . 8 Combat Programmer 1 | . . . . . . . . . . . . . . . . . . . . . . . . . . . . . . . . . . . 1 . Striker 2 | . . . . . . . . . . . . . . . . . . . . . . . . . . . 2 . . . . . . . . . Executioner 1 | . . . . . . . . . . . . . . . . . . . . . . . . . . . 1 . . . . . . . . . Fortress 1 | . . . . . . . . . . . . . . . . . . . . . . . . . . . . . . . . 1 . . . . Master Thief 2 | . . . . . . . . . . . 1 . . . . . . . . . 1 . . . . . . . . . . . . . . . Wasp 1 | . . . . . . . . . . . . . . . . . . . . . . . . . . . . . . . . . . . 1 . Thug 1 | . . . . . . . . . . . 1 . . . . . . . . . . . . . . . . . . . . . . . . . Savage 1 | . . . . . . . . . . . 1 . . . . . . . . . . . . . . . . . . . . . . . . . Butcher 1 | . . . . . . . . . . . . . . . . . . . . . . . . . . . . . . . . . . . 1 . Guerrilla 3 | . . . . . . . . . . . . . . . . 3 . . . . . . . . . . . . . . . . . . . . Best Kill Streak 22 | 3 3 1 7 1 . 2 4 1 1 3 2 1 1 3 3 4 5 2 3 2 1 . 4 2 1 2 9 2 2 3 3 3 5 7 22 5 Combat Bots Only 20 | . 2 1 6 1 . 2 2 1 1 3 2 1 1 3 3 4 3 2 1 2 1 . 4 2 1 2 9 2 2 2 3 3 3 5 20 5 Max Kills in Single Turn 7 | 1 1 1 4 1 . 1 1 1 1 2 1 1 1 2 2 1 1 1 3 1 1 . 1 1 1 1 7 1 1 1 1 2 2 6 2 1 Gunslinging . | . . . . . . . . . . . . . . . . . . . . . . . . . . . . . . . . . . . . . Exploded 7 | . . . 4 . . . 1 . . 2 1 . . . . . . . . . . . . . . . 7 . . . . . . 4 1 1 Melee 1 | . . . . . . . . . . . . 1 . . . . . . . . . . . . . . . . . . . . . . . . Uniques/NPCs Destroyed 7 | . . . . . . . . . . . . 1 . . . . . . . . . . . . . . . . . . . . . . 2 4 Data Miner (-7/Data Miner) MAIN.C Shell (-1/Command) MAIN.C (-1/Command) A8 (-1/Access_0) A6 (-1/Access_0) A2 (-1/Access_0) Architect (-1/Access_0) Combat | -11 -10 -10 -9 -9 -9 -8 -8 -8 -7 -7 -7 -7 -6 -6 -6 -6 -6 -6 -5 -5 -5 -5 -4 -4 -4 -4 -4 -3 -3 -3 -2 -2 -2 -1 -1 -1 -------- Run | Scr Mat Min Mat Min Exi Min Mat Sto Fac Low Low Dat Pro Fac Ext Cet Arc Hub Fac Upp Upp Zhi Pro Fac Upp Upp War Pro Res Qua Res Tes Sec Acc Com Ac0 Damage Taken 15652 | . 63 51 29 . . 70 44 66 29 212 27 962 437 367 409 243 82 153 259 49 49 . 335 68 . 30 442 56 8 955 314 442 302 115 2477 6507 Core 912 | . 12 . 29 . . 14 14 . . 72 . 93 46 21 32 32 . 32 9 19 . . 27 . . . 44 12 . 52 13 7 12 14 185 121 Absorbed by Shields 9362 | . . . . . . . . . . . . . . 158 57 97 30 19 93 48 43 . 93 27 . 10 202 54 8 922 299 437 316 68 2186 4195 Reduced by Siege Mode 819 | . . . . . . . . . . . . . . 8 . 10 . . . . 6 . 10 . . 5 3 4 2 71 12 17 30 . 266 375 Core Remaining (%) 76 | 100 . 72 . . . 87 . 89 . . . . 44 . . . . 22 . . . . 93 . . . . 89 . 96 . . 70 . . . Volleys Fired 861 | 18 22 6 15 2 . 8 19 26 3 14 9 12 15 41 27 26 23 19 26 7 9 . 22 11 4 7 19 8 5 74 38 56 44 17 111 98 Largest 2 | 1 2 2 2 2 . 2 2 1 1 1 1 1 2 1 1 1 1 1 1 1 1 . 1 1 1 1 1 1 1 1 1 1 1 1 1 1 Hottest 200 | 20 90 46 126 86 . 46 128 75 69 69 69 69 38 60 60 60 60 60 60 60 60 . 60 60 60 60 60 60 60 60 60 60 200 200 200 200 Shots Fired 920 | 18 40 12 27 3 . 16 29 26 3 14 9 12 19 41 27 26 23 19 26 7 9 . 22 11 4 7 19 8 5 74 38 56 44 17 111 98 Gun 124 | 18 40 12 . 1 . 16 13 . . . . . 19 5 . . . . . . . . . . . . . . . . . . . . . . Cannon 784 | . . . 24 2 . . 14 26 3 13 5 12 . 36 27 26 23 19 26 7 9 . 22 11 4 7 17 8 5 74 38 56 44 17 111 98 Launcher 12 | . . . 3 . . . 2 . . 1 4 . . . . . . . . . . . . . . . 2 . . . . . . . . . Special . | . . . . . . . . . . . . . . . . . . . . . . . . . . . . . . . . . . . . . Kinetic 660 | 18 24 12 . 1 . 16 . . . . . . 19 41 27 26 23 19 26 7 9 . 22 11 4 7 15 8 5 73 38 56 42 14 82 15 Thermal 170 | . 7 . . . . . 13 26 . . 1 6 . . . . . . . . . . . . . . . . . . . . 2 3 29 83 Explosive 10 | . . . 3 . . . 2 . . 1 4 . . . . . . . . . . . . . . . . . . . . . . . . . Electromagnetic 75 | . 9 . 24 2 . . 14 . 3 13 4 6 . . . . . . . . . . . . . . . . . . . . . . . . Entropic 5 | . . . . . . . . . . . . . . . . . . . . . . . . . . . 4 . . 1 . . . . . . Robot Hit Streak 69 | 5 7 9 5 6 . 5 9 6 3 5 8 4 6 18 18 23 7 7 5 4 4 . 12 13 8 6 14 8 11 36 27 14 28 12 69 39 Robot Miss Streak 9 | 3 2 1 2 2 . 3 3 3 1 1 2 1 4 4 5 7 5 3 8 2 5 . 3 3 1 2 2 3 2 4 3 6 2 9 7 1 Penetration Max 1 | . . . . . . . . . . . . . . . . . . . . . . . . . . . . . . . . . . . 1 . Secondary Targets 1 | . . . . . . 1 . . . . . . . . . . . . . . . . . . . . . . . . . . . . . . Max Gunslinging Chain 1 | . . . . . . 1 . . . . . . . . . . . . . . . . . . . . . . . . . . . . . . Shots Hit Robots 805 | 12 23 10 12 1 . 9 25 14 2 10 7 11 9 39 23 22 23 11 19 6 7 . 20 11 4 7 17 8 5 66 27 53 40 19 143 90 Core Hits 685 | 6 13 4 17 1 . 3 25 4 1 6 10 5 4 21 17 22 21 8 17 3 4 . 8 10 2 6 26 6 6 49 17 37 41 32 152 81 Critical Kills 44 | . . . . . . . . . . . . . . . . . . . . . . . . . . . . . . . . . . 12 28 4 Critical Parts Destroyed 69 | . . . . . . . . . . . . . . . . . . . . . . . . . . . . . . . . . . 7 50 12 Critical Strikes 154 | . 1 . . . . . 1 . . . . . . 2 . 1 . 2 1 1 . . . . . . 2 . . 4 1 4 3 20 85 26 Burn 1 | . 1 . . . . . . . . . . . . . . . . . . . . . . . . . . . . . . . . . . . Meltdown 2 | . . . . . . . . . . . . . . . . . . . . . . . . . . . . . . . . . . . . 2 Destroy 127 | . . . . . . . . . . . . . . . . . . . . . . . . . . . . . . . . . . 20 84 23 Blast 23 | . . . . . . . . . . . . . . 2 . 1 . 2 1 1 . . . . . . 2 . . 4 1 4 3 . 1 1 Corrupt 1 | . . . . . . . 1 . . . . . . . . . . . . . . . . . . . . . . . . . . . . . Melee Attacks 67 | . . . . . . . . . . . . 2 1 2 . . 1 . . . . . . . . . . . . . . 6 . 5 50 . Kinetic 3 | . . . . . . . . . . . . . . . . . . . . . . . . . . . . . . . . 3 . . . . Impact . | . . . . . . . . . . . . . . . . . . . . . . . . . . . . . . . . . . . . . Slashing 63 | . . . . . . . . . . . . 2 1 2 . . . . . . . . . . . . . . . . . 3 . 5 50 . Piercing . | . . . . . . . . . . . . . . . . . . . . . . . . . . . . . . . . . . . . . Sneak Attacks 5 | . . . . . . . . . . . . 1 . . . . 1 . . . . . . . . . . . . . . . . 3 . . Combat Hostiles . | . . . . . . . . . . . . . . . . . . . . . . . . . . . . . . . . . . . . . Follow-up Attacks . | . . . . . . . . . . . . . . . . . . . . . . . . . . . . . . . . . . . . . Damage Inflicted 77728 | 137 403 184 770 27 . 153 685 365 86 312 637 310 163 1628 1508 1322 1200 593 1145 254 420 . 1125 817 155 373 3564 446 290 4613 1710 4231 3563 1552 21119 21868 Guns 1240 | 137 388 168 . . . 140 168 . . . . . 163 76 . . . . . . . . . . . . . . . . . . . . . . Cannons 46360 | . . . 496 27 . . 301 365 86 209 76 152 . 1552 1422 1322 1200 592 895 254 420 . 1125 807 130 373 1099 446 290 4613 1710 3508 3251 308 7246 12085 Explosions 18513 | . . . 267 . . . 208 . . 103 561 . . . 86 . . . 235 . . . . . . . 2463 . . . . . 214 532 4109 9735 Melee 11331 | . . . . . . . . . . . . 158 . . . . . . . . . . . . . . . . . . . 697 . 712 9764 . Ramming 284 | . 15 16 7 . . 13 8 . . . . . . . . . . 1 15 . . . . 10 25 . 2 . . . . 26 98 . . 48 Kinetic 29964 | 137 291 168 . . . 140 . . . . . . 163 1628 1422 1322 1200 592 895 254 420 . 1125 807 130 373 1099 446 290 4613 1710 3584 2968 171 3556 460 Thermal 31129 | . 39 . . . . . 168 365 . . 22 63 . . 86 . . . 61 . . . . . . . . . . . . . 497 669 7799 21360 Explosive 1139 | . . . 267 . . . 208 . . 103 561 . . . . . . . . . . . . . . . . . . . . . . . . . Electromagnetic 1494 | . 58 . 496 27 . . 301 . 86 209 54 89 . . . . . . 174 . . . . . . . . . . . . . . . . . Impact . | . . . . . . . . . . . . . . . . . . . . . . . . . . . . . . . . . . . . . Slashing 11255 | . . . . . . . . . . . . 158 . . . . . . . . . . . . . . . . . . . 621 . 712 9764 . Piercing . | . . . . . . . . . . . . . . . . . . . . . . . . . . . . . . . . . . . . . Entropic 2463 | . . . . . . . . . . . . . . . . . . . . . . . . . . . 2463 . . . . . . . . . Highest Corruption 3 | . 3 3 . . . . . . . . . . . . . . . . 1 . . . . . . . . . . 3 . 1 . . 1 . Average Corruption 2 | . 1 3 . . . . . . . . . . . . . . . . 1 . . . . . . . . . . 2 . 1 . . 1 . Corruption Purged 5 | . . . . . . . . . . . . . . . . . . . 1 . . . . . . . . . . . . . . . 4 . Effects 50 | . 1 24 . . . . . . . . . . . . . . . . 1 . . . . . . . . . . 23 . 1 . . . . Message Errors 19 | . 1 7 . . . . . . . . . . . . . . . . . . . . . . . . . . . 10 . 1 . . . . Matter Fused 10 | . . 6 . . . . . . . . . . . . . . . . . . . . . . . . . . . 4 . . . . . . Heat Flow Errors 7 | . . 3 . . . . . . . . . . . . . . . . . . . . . . . . . . . 4 . . . . . . Energy Discharges 4 | . . 2 . . . . . . . . . . . . . . . . 1 . . . . . . . . . . 1 . . . . . . Data Loss (minor) 10 | . . 6 . . . . . . . . . . . . . . . . . . . . . . . . . . . 4 . . . . . . Overload Shots . | . . . . . . . . . . . . . . . . . . . . . . . . . . . . . . . . . . . . . Overflow Damage 3924 | . . . . . . . 22 . . 4 . . . 15 61 19 9 . 21 . 11 . 23 . 10 16 347 12 . 48 4 77 140 354 1540 1191 Projectiles 1439 | . . . . . . . 22 . . 4 . . . 15 25 19 9 . 21 . 11 . 23 . 6 16 . 12 . 48 4 36 134 . 188 846 Explosions 728 | . . . . . . . . . . . . . . . 36 . . . . . . . . . . . 347 . . . . . . . . 345 Melee 1757 | . . . . . . . . . . . . . . . . . . . . . . . . . 4 . . . . . . 41 6 354 1352 . Knockbacks 148 | . 1 . . . . 1 . . . . . . . 17 3 7 8 2 7 2 6 . 12 2 2 . 3 3 . 12 18 17 15 . 9 1 Impact 4 | . 1 . . . . 1 . . . . . . . . . . . . . . . . . . 1 . . . . . . . 1 . . . Kinetic 139 | . . . . . . . . . . . . . . 17 2 7 8 2 6 2 6 . 11 2 1 . 3 3 . 12 16 17 14 . 9 1 Secondary 5 | . . . . . . . . . . . . . . . 1 . . . 1 . . . 1 . . . . . . . 2 . . . . . Self-Inflicted Damage 140 | . . . . . . . . . . . . . . . 75 . . . . . . . . . . . . . . . . . . . 65 . Shots 2 | . . . . . . . . . . . . . . . 1 . . . . . . . . . . . . . . . . . . . 1 . Rammed 21 | . . . . . . . . . . . . . . . . . . 1 1 . . . . 1 3 . 1 . . . . 2 7 . . 5 Targets Rammed 36 | . 3 4 3 . . 2 3 . . . . . . . . . . 1 1 . . . . 1 3 . 1 . . . . 2 7 . . 5 Kicked 15 | . 3 4 3 . . 2 3 . . . . . . . . . . . . . . . . . . . . . . . . . . . . . Crushed . | . . . . . . . . . . . . . . . . . . . . . . . . . . . . . . . . . . . . . Highest Temperature 364 | . 120 260 120 60 . . 193 105 61 187 52 229 8 102 60 112 96 44 141 172 182 . 229 110 44 50 36 30 20 276 118 305 140 134 364 251 Average Temperature 58 | . 28 91 44 30 . . 84 31 29 72 21 121 5 42 20 43 33 10 39 91 76 . 103 42 23 20 11 17 10 69 37 58 24 72 191 88 Received Heat Transfer 853 | . 18 45 9 . . . 27 36 18 9 . 120 . 23 56 . 12 38 . 29 . . 21 6 . 6 31 22 . . 36 40 52 4 103 92 Effects 2 | . . . . . . . . . . . . . . . . . . . . . . . 1 . . . . . . . . . . . 1 . Interference 1 | . . . . . . . . . . . . . . . . . . . . . . . 1 . . . . . . . . . . . . . Damage (minor) 1 | . . . . . . . . . . . . . . . . . . . . . . . . . . . . . . . . . . . 1 . Siege Activations 52 | . . . . . . . . . . . . . . 3 . 2 . . . . 1 . 4 . 1 3 2 1 1 9 2 4 5 2 4 8 Total Turns 686 | . . . . . . . . . . . . . . 24 . 21 . . . . 10 . 34 . 6 29 11 8 7 134 30 30 115 7 117 103 Longest Duration 51 | . . . . . . . . . . . . . . 11 . 12 . . . . 10 . 13 . 6 16 8 8 7 51 22 14 42 5 51 27 Robots Corrupted 1 | . . . . . . . 1 . . . . . . . . . . . . . . . . . . . . . . . . . . . . . Combat Hostiles . | . . . . . . . . . . . . . . . . . . . . . . . . . . . . . . . . . . . . . Parts Fried 5 | . . . 5 . . . . . . . . . . . . . . . . . . . . . . . . . . . . . . . . . Impact Corruptions 2 | . . . . . . . . . . . . . . . . . . . . . . . . . 1 . . . . . . . 1 . . . Robots Melted 2 | . . . . . . . . . . . . . . . . . . . . . . . . . . . . . . . . . . . . 2 Combat Hostiles 2 | . . . . . . . . . . . . . . . . . . . . . . . . . . . . . . . . . . . . 2 Parts Melted 7 | . . . . . . . . 1 . . . . . . . . . . . . . . . . . . . . . . . . . 2 . 4 Heat Transferred 11179 | . 185 . . . . . 205 592 . . 37 148 . . 6 . . . 50 . . . . . . . . . . . . . 260 460 2994 6242 Parts Sabotaged . | . . . . . . . . . . . . . . . . . . . . . . . . . . . . . . . . . . . . . Parts Stolen 3 | . . . . . . . . . . . 1 . . . . . . . . . 2 . . . . . . . . . . . . . . . Parts Stripped . | . . . . . . . . . . . . . . . . . . . . . . . . . . . . . . . . . . . . . Power Chain Reactions 1 | . . . . . . . . . . . . . . . . . . . 1 . . . . . . . . . . . . . . . . . Missiles Intercepted . | . . . . . . . . . . . . . . . . . . . . . . . . . . . . . . . . . . . . . Alert | -11 -10 -10 -9 -9 -9 -8 -8 -8 -7 -7 -7 -7 -6 -6 -6 -6 -6 -6 -5 -5 -5 -5 -4 -4 -4 -4 -4 -3 -3 -3 -2 -2 -2 -1 -1 -1 ------- Run | Scr Mat Min Mat Min Exi Min Mat Sto Fac Low Low Dat Pro Fac Ext Cet Arc Hub Fac Upp Upp Zhi Pro Fac Upp Upp War Pro Res Qua Res Tes Sec Acc Com Ac0 Peak Influence 1250 | 25 323 242 314 121 . 68 385 312 731 . . . . 1250 607 520 422 410 332 . . . . 462 . . . . 168 275 435 482 1222 827 824 . Initial 607 | . 16 125 . 19 . . 26 162 38 . . . . 135 607 46 208 87 109 . . . . 42 . . . . . . 15 244 258 582 254 . Average 223 | 17 171 81 94 120 . 17 224 143 224 . . . . 505 121 271 328 134 225 . . . . 150 . . . . 40 106 256 280 771 540 562 . Maximum Alert Level 5 | . 1 1 1 . . . 1 1 3 . . . . 4 2 2 2 2 1 . . . . 2 . . . . . 1 2 2 4 3 5 . Low Security (%) 45 | 100 48 84 76 100 . 100 43 75 33 . . . . 59 89 56 . 76 35 . . . . 58 . . . . 100 82 41 26 4 . . . Level 1 21 | . 51 15 23 . . . 56 24 54 . . . . . 5 12 52 20 64 . . . . 32 . . . . . 17 45 59 18 9 2 . Level 2 9 | . . . . . . . . . 8 . . . . 5 5 31 47 2 . . . . . 9 . . . . . . 13 14 12 82 6 . Level 3 3 | . . . . . . . . . 3 . . . . 6 . . . . . . . . . . . . . . . . . . 52 7 6 . Level 4 1 | . . . . . . . . . . . . . . 27 . . . . . . . . . . . . . . . . . . 11 . . . Level 5 19 | . . . . . . . . . . . . . . . . . . . . . . . . . . . . . . . . . . . 82 . High Security . | . . . . . . . . . . . . . . . . . . . . . . . . . . . . . . . . . . . . . Max Security . | . . . . . . . . . . . . . . . . . . . . . . . . . . . . . . . . . . . . . Squads Dispatched 54 | . 3 . . . . . . 5 6 . . . . 5 2 . . 4 2 . . . . 2 . . . . 2 . . 10 6 2 5 . Investigation 6 | . 2 . . . . . . . . . . . . . . . . 1 . . . . . . . . . . . . . 2 . . 1 . Extermination 15 | . . . . . . . . . 2 . . . . 1 . . . 1 2 . . . . 1 . . . . . . . 5 . 1 2 . Reinforcement 20 | . 1 . . . . . . 2 3 . . . . 2 2 . . 2 . . . . . 1 . . . . 1 . . 2 2 1 1 . Assault 7 | . . . . . . . . . 1 . . . . 2 . . . . . . . . . . . . . . . . . 1 2 . 1 . Garrison 6 | . . . . . . . . 3 . . . . . . . . . . . . . . . . . . . . 1 . . . 2 . . . Intercept . | . . . . . . . . . . . . . . . . . . . . . . . . . . . . . . . . . . . . . Construction Impeded 3 | . . . . . . . . . . . . . . . . . . . . . . . . . . . . . . . . . 2 1 . . Haulers Reinforced 3 | . . . . . . . . . . . . . . . . . . 1 . . . . . 1 . . . . . . . 1 . . . . Active Scanning Responses . | . . . . . . . . . . . . . . . . . . . . . . . . . . . . . . . . . . . . . Cargo Convoy Interrupts 2 | . . . . . . . . . 1 . . . . 1 . . . . . . . . . . . . . . . . . . . . . . Stealth | -11 -10 -10 -9 -9 -9 -8 -8 -8 -7 -7 -7 -7 -6 -6 -6 -6 -6 -6 -5 -5 -5 -5 -4 -4 -4 -4 -4 -3 -3 -3 -2 -2 -2 -1 -1 -1 --------- Run | Scr Mat Min Mat Min Exi Min Mat Sto Fac Low Low Dat Pro Fac Ext Cet Arc Hub Fac Upp Upp Zhi Pro Fac Upp Upp War Pro Res Qua Res Tes Sec Acc Com Ac0 Distress Signals 42 | . 3 . 1 . . . 1 1 1 . . . . . 2 2 . 1 . . . . . . . . . . 4 1 2 . 5 2 16 . Communications Jammed . | . . . . . . . . . . . . . . . . . . . . . . . . . . . . . . . . . . . . . Distress Signals . | . . . . . . . . . . . . . . . . . . . . . . . . . . . . . . . . . . . . . Times Spotted 532 | . 17 4 18 2 . 3 9 11 12 9 9 4 8 28 30 16 12 15 16 5 5 . 10 6 3 5 48 5 3 18 9 28 35 25 61 43 Peak Tracking Total 13 | . 4 2 10 2 . 3 3 3 4 5 4 4 3 13 7 4 1 3 4 4 4 . 6 3 2 3 12 3 1 4 4 5 9 6 8 4 Tactical Retreats 6 | . . 1 1 . . . . . . . . . . . 1 . . . . . . . . . . . . . . . . . . 1 2 . Traps | -11 -10 -10 -9 -9 -9 -8 -8 -8 -7 -7 -7 -7 -6 -6 -6 -6 -6 -6 -5 -5 -5 -5 -4 -4 -4 -4 -4 -3 -3 -3 -2 -2 -2 -1 -1 -1 ------- Run | Scr Mat Min Mat Min Exi Min Mat Sto Fac Low Low Dat Pro Fac Ext Cet Arc Hub Fac Upp Upp Zhi Pro Fac Upp Upp War Pro Res Qua Res Tes Sec Acc Com Ac0 Traps Triggered 13 | . 3 . 2 . . . . . . . . . . . 4 . . . 1 . . . . . . . . . . . . . . 1 2 . Indirectly . | . . . . . . . . . . . . . . . . . . . . . . . . . . . . . . . . . . . . . Trap Hack Attempts 15 | . . . . . . . . 15 . . . . . . . . . . . . . . . . . . . . . . . . . . . . Triggered . | . . . . . . . . . . . . . . . . . . . . . . . . . . . . . . . . . . . . . Disarmed . | . . . . . . . . . . . . . . . . . . . . . . . . . . . . . . . . . . . . . Reprogrammed 3 | . . . . . . . . 3 . . . . . . . . . . . . . . . . . . . . . . . . . . . . Reused . | . . . . . . . . . . . . . . . . . . . . . . . . . . . . . . . . . . . . . Traps Extracted . | . . . . . . . . . . . . . . . . . . . . . . . . . . . . . . . . . . . . . Installed . | . . . . . . . . . . . . . . . . . . . . . . . . . . . . . . . . . . . . . Triggered 13 | . . . . . . . . . 1 . . . . . . . . . . . . . . . . . 11 . . . . . . . 1 . Machines | -11 -10 -10 -9 -9 -9 -8 -8 -8 -7 -7 -7 -7 -6 -6 -6 -6 -6 -6 -5 -5 -5 -5 -4 -4 -4 -4 -4 -3 -3 -3 -2 -2 -2 -1 -1 -1 ---------- Run | Scr Mat Min Mat Min Exi Min Mat Sto Fac Low Low Dat Pro Fac Ext Cet Arc Hub Fac Upp Upp Zhi Pro Fac Upp Upp War Pro Res Qua Res Tes Sec Acc Com Ac0 Machines Disabled 80 | . . . . . . . . 2 1 . . 1 1 . 6 . 2 2 7 . . . . 2 . . 1 . . 19 2 16 6 2 7 3 Max in Single Turn 2 | . . . . . . . . 1 . . . 1 1 . 1 . 1 1 2 . . . . . . . 1 . . 2 . 2 1 1 2 1 Garrison Access 8 | . . . . . . . . . 2 . . . . . . . . 1 . . . . . . . . . . 1 1 . 1 1 1 . . Network Hub 2 | . . . . . . . . . . . . . . . . . . 2 . . . . . . . . . . . . . . . . . . Energy Cycler 3 | . . . . . . . . . . . . . . . 3 . . . . . . . . . . . . . . . . . . . . . Machines Sabotaged 1 | . . . . . . . . . . . . . . . . . . 1 . . . . . . . . . . . . . . . . . . Garrisons Compromised . | . . . . . . . . . . . . . . . . . . . . . . . . . . . . . . . . . . . . . Overloaded Fab Kills . | . . . . . . . . . . . . . . . . . . . . . . . . . . . . . . . . . . . . . Fab Network Shutdowns 3 | . . . . . . . . . 1 . . . . 1 . . . . . . . . . 1 . . . . . . . . . . . . Hacking | -11 -10 -10 -9 -9 -9 -8 -8 -8 -7 -7 -7 -7 -6 -6 -6 -6 -6 -6 -5 -5 -5 -5 -4 -4 -4 -4 -4 -3 -3 -3 -2 -2 -2 -1 -1 -1 --------- Run | Scr Mat Min Mat Min Exi Min Mat Sto Fac Low Low Dat Pro Fac Ext Cet Arc Hub Fac Upp Upp Zhi Pro Fac Upp Upp War Pro Res Qua Res Tes Sec Acc Com Ac0 Machines Accessed 99 | . 5 . 5 . 2 . 2 8 7 . . 3 . 5 6 . . 4 4 . . 4 . 3 1 . 3 . 5 13 1 8 3 4 3 . Terminals 62 | . 3 . 4 . . . 2 8 5 . . . . 4 5 . . 3 1 . . . . 1 . . . . 3 8 1 5 3 3 3 . Fabricators 7 | . . . . . . . . . 1 . . . . 1 . . . . 2 . . . . 1 . . . . 1 . . 1 . . . . Repair Stations 5 | . . . . . . . . . . . . . . . 1 . . . 1 . . . . 1 . . . . . 2 . . . . . . Recycling Units 2 | . 2 . . . . . . . . . . . . . . . . . . . . . . . . . . . . . . . . . . . Scanalyzers 4 | . . . 1 . . . . . . . . . . . . . . . . . . . . . . . . . . 2 . 1 . . . . Garrison Access 6 | . . . . . . . . . 1 . . . . . . . . 1 . . . . . . . . . . 1 1 . 1 . 1 . . Total Hacks 527 | . 13 . 18 . 2 . 5 28 21 . . 21 . 30 59 . . 23 34 . . 17 . 18 1 . 7 . 41 79 6 43 23 28 10 . Successful 411 | . 7 . 11 . 2 . 3 17 8 . . 21 . 23 42 . . 22 29 . . 17 . 13 1 . 7 . 36 70 2 37 16 20 7 . Failed 114 | . 6 . 7 . . . 2 11 13 . . . . 7 16 . . 1 5 . . . . 5 . . . . 5 8 4 6 7 8 3 . Catastrophic 13 | . 1 . 2 . . . . 1 1 . . . . 1 1 . . . 1 . . . . . . . . . . . 1 . 3 1 . . Database Lockouts 2 | . . . . . . . . . . . . . . . 1 . . . . . . . . . . . . . . 1 . . . . . . Manual 210 | . 8 . 1 . 1 . 3 11 8 . . . . 9 31 . . 19 8 . . . . 12 . . . . 22 14 3 20 13 23 4 . Terminals 356 | . 8 . 15 . . . 5 28 13 . . . . 16 40 . . 22 12 . . . . 9 . . . . 31 55 6 36 23 27 10 . Fabricators 56 | . . . . . . . . . 7 . . . . 14 . . . . 16 . . . . 5 . . . . 9 . . 5 . . . . Repair Stations 41 | . . . . . . . . . . . . . . . 19 . . . 6 . . . . 4 . . . . . 12 . . . . . . Recycling Units 5 | . 5 . . . . . . . . . . . . . . . . . . . . . . . . . . . . . . . . . . . Scanalyzers 15 | . . . 3 . . . . . . . . . . . . . . . . . . . . . . . . . . 11 . 1 . . . . Garrison Access 6 | . . . . . . . . . 1 . . . . . . . . 1 . . . . . . . . . . 1 1 . 1 . 1 . . Terminal Hacks 268 | . 5 . 7 . 2 . 2 12 1 . . 21 . 10 23 . . 15 9 . . 17 . 4 1 . 7 . 25 41 2 24 15 19 6 . Record 18 | . . . . . 1 . . . . . . 6 . . . . . . . . . 5 . . . . 6 . . . . . . . . . Part Schematic 30 | . . . . . . . . 1 . . . 6 . 2 2 . . . . . . 4 . 1 . . . . 4 5 . 2 3 . . . Robot Schematic 11 | . . . . . . . . . . . . 6 . . . . . . . . . . . . . . . . 1 3 . . 1 . . . Robot Analysis 12 | . 4 . . . . . . 1 . . . . . . . . . . . . . 4 . . . . . . 1 2 . . . . . . Prototype ID Bank 42 | . . . 1 . . . 1 1 . . . 3 . 1 4 . . 1 1 . . 4 . . . . . . 10 4 . 2 1 8 . . Open Door 9 | . . . . . . . . 4 . . . . . 1 . . . . . . . . . . 1 . 1 . . . . . . 1 1 . Level Access Points 7 | . . . 1 . . . . . . . . . . 1 . . . 1 . . . . . . . . . . 1 1 1 . 1 . . . Branch Access Points 4 | . . . . . . . . . . . . . . 1 . . . . . . . . . 1 . . . . 1 . . . . 1 . . Emergency Access Points 2 | . . . . . . . . . . . . . . . . . . . . . . . . . . . . . . 1 . . 1 . . . Machine Index 2 | . . . . . . . . . . . . . . . . . . . 1 . . . . . . . . . 1 . . . . . . . Terminal Index 6 | . . . 1 . . . . 1 . . . . . . . . . 1 . . . . . . . . . . . 1 . . 1 . 1 . Fabricator Index 3 | . . . . . . . . . . . . . . . . . . . 1 . . . . 1 . . . . . . . 1 . . . . Repair Station Index 1 | . . . . . . . . . . . . . . . . . . . . . . . . . . . . . . 1 . . . . . . Recycling Unit Index 1 | . . . . . . . . . . . . . . . . . . . . . . . . . . . . . . . . . . . 1 . Garrison Index 2 | . . . . . . . . . . . . . . . . . . 1 . . . . . . . . . . . 1 . . . . . . Alert Level 22 | . . . . . . . 1 1 . . . . . . 4 . . 2 1 . . . . . . . . . 1 3 . 3 2 3 1 . Unreport Threat 34 | . . . 1 . . . . . . . . . . 1 6 . . 2 1 . . . . . . . . . . 8 . 5 4 5 1 . Locate Traps 12 | . . . . . . . . . . . . . . . 2 . . 1 1 . . . . . . . . . 1 5 . 2 . . . . Dispatch Records 4 | . . . . . . . . 1 . . . . . . 1 . . 2 . . . . . . . . . . . . . . . . . . Maintenance Status 2 | . . . . . . . . . . . . . . . . . . 1 . . . . . . . . . . 1 . . . . . . . Patrol Status 10 | . . . 1 . . . . . . . . . . 2 1 . . 1 1 . . . . . . . . . 1 1 . 2 . . . . Transport Status 1 | . . . . . . . . . . . . . . . . . . . . . . . . . . . . . . . . 1 . . . . Recall Extermination 2 | . . . . . . . . . . . . . . . . . . . . . . . . . . . . . . . . 2 . . . . Recall Reinforcements 5 | . . . . . . . . 1 . . . . . . 2 . . 1 . . . . . 1 . . . . . . . . . . . . Hauler Manifests 5 | . . . 1 . . . . 1 1 . . . . . 1 . . . . . . . . . . . . . . . . 1 . . . . Registered Components 3 | . . . . . . . . . . . . . . . . . . . 1 . . . . . . . . . 1 1 . . . . . . Registered Prototypes 3 | . . . . . . . . . . . . . . . . . . . 1 . . . . . . . . . 1 . . 1 . . . . Zone Layout 13 | . 1 . 1 . . . . . . . . . . 1 . . . 1 . . . . . . . . . . . 4 1 2 1 1 . . EX-Prototype ID Bank 1 | . . . . . 1 . . . . . . . . . . . . . . . . . . . . . . . . . . . . . . . Disengage Seal 1 | . . . . . . . . . . . . . . . . . . . . . . . . . . . . . . . . . . . 1 . Fabricator Hacks 30 | . . . . . . . . . 1 . . . . 9 . . . . 9 . . . . 2 . . . . 6 . . 3 . . . . Load Schematic 12 | . . . . . . . . . . . . . . 4 . . . . 4 . . . . 1 . . . . 2 . . 1 . . . . Build 18 | . . . . . . . . . 1 . . . . 5 . . . . 5 . . . . 1 . . . . 4 . . 2 . . . . Repair Station Hacks 40 | . . . . . . . . . . . . . . . 18 . . . 6 . . . . 4 . . . . . 12 . . . . . . Scan Component 20 | . . . . . . . . . . . . . . . 9 . . . 3 . . . . 2 . . . . . 6 . . . . . . Repair 20 | . . . . . . . . . . . . . . . 9 . . . 3 . . . . 2 . . . . . 6 . . . . . . Recycling Unit Hacks . | . . . . . . . . . . . . . . . . . . . . . . . . . . . . . . . . . . . . . Scanalyzer 15 | . . . 3 . . . . . . . . . . . . . . . . . . . . . . . . . . 11 . 1 . . . . Insert Component 12 | . . . 1 . . . . . . . . . . . . . . . . . . . . . . . . . . 10 . 1 . . . . Analyze 3 | . . . 2 . . . . . . . . . . . . . . . . . . . . . . . . . . 1 . . . . . . Garrison Access Hacks 6 | . . . . . . . . . 1 . . . . . . . . 1 . . . . . . . . . . 1 1 . 1 . 1 . . Seal Access 6 | . . . . . . . . . 1 . . . . . . . . 1 . . . . . . . . . . 1 1 . 1 . 1 . . Unauthorized Hacks 52 | . 2 . 1 . . . 1 5 5 . . . . 4 1 . . 6 5 . . . . 3 . . . . 4 5 . 8 1 . 1 . Terminals 31 | . . . 1 . . . 1 5 1 . . . . 1 1 . . 6 . . . . . 1 . . . . 1 5 . 6 1 . 1 . Track 7 | . . . . . . . . . . . . . . . 1 . . . . . . . . . . . . . . 3 . 3 . . . . Assimilate 8 | . . . 1 . . . 1 2 1 . . . . . . . . 2 . . . . . . . . . . . . . . . . 1 . Botnet 5 | . . . . . . . . 1 . . . . . . . . . 1 . . . . . . . . . . . 1 . 2 . . . . Disrupt 1 | . . . . . . . . 1 . . . . . . . . . . . . . . . . . . . . . . . . . . . . Operators 9 | . . . . . . . . 1 . . . . . 1 . . . 2 . . . . . 1 . . . . 1 1 . 1 1 . . . Sabotage 1 | . . . . . . . . . . . . . . . . . . 1 . . . . . . . . . . . . . . . . . . Fabricators 19 | . . . . . . . . . 4 . . . . 3 . . . . 5 . . . . 2 . . . . 3 . . 2 . . . . Report 3 | . . . . . . . . . 1 . . . . 1 . . . . 1 . . . . . . . . . . . . . . . . . Prioritize 7 | . . . . . . . . . 1 . . . . 1 . . . . 2 . . . . 1 . . . . 1 . . 1 . . . . Siphon 5 | . . . . . . . . . 1 . . . . 1 . . . . 1 . . . . . . . . . 1 . . 1 . . . . Haulers 4 | . . . . . . . . . 1 . . . . . . . . . 1 . . . . 1 . . . . 1 . . . . . . . Repair Stations . | . . . . . . . . . . . . . . . . . . . . . . . . . . . . . . . . . . . . . Recycling Units 2 | . 2 . . . . . . . . . . . . . . . . . . . . . . . . . . . . . . . . . . . Tunnel 2 | . 2 . . . . . . . . . . . . . . . . . . . . . . . . . . . . . . . . . . . Scanalyzers . | . . . . . . . . . . . . . . . . . . . . . . . . . . . . . . . . . . . . . Garrison Access . | . . . . . . . . . . . . . . . . . . . . . . . . . . . . . . . . . . . . . Data Cores Recovered . | . . . . . . . . . . . . . . . . . . . . . . . . . . . . . . . . . . . . . Used . | . . . . . . . . . . . . . . . . . . . . . . . . . . . . . . . . . . . . . Hacking Detections 60 | . 4 . 4 . . . 2 4 5 . . . . 3 5 . . 2 4 . . . . 1 . . . . 3 11 1 4 3 3 1 . Full Trace Events . | . . . . . . . . . . . . . . . . . . . . . . . . . . . . . . . . . . . . . Feedback Events . | . . . . . . . . . . . . . . . . . . . . . . . . . . . . . . . . . . . . . Feedback Blocked . | . . . . . . . . . . . . . . . . . . . . . . . . . . . . . . . . . . . . . Robot Schematics Acquired 11 | . . . . . . . . . . . . 6 . . . . . . . . . . . . . . . . 1 3 . . 1 . . . Robots Built 2 | . . . . . . . . . . . . . . 1 . . . . 1 . . . . . . . . . . . . . . . . . Matter 556 | . . . . . . . . . . . . . . 238 . . . . 318 . . . . . . . . . . . . . . . . . Time 253 | . . . . . . . . . . . . . . 84 . . . . 169 . . . . . . . . . . . . . . . . . Total Robot Build Rating 12 | . . . . . . . . . . . . . . 6 . . . . 6 . . . . . . . . . . . . . . . . . Part Schematics Acquired 32 | . . . 1 . . . . 1 . . . 6 . 2 2 . . . . . . 4 . 1 . . . . 4 6 . 2 3 . . . Parts Built 15 | . . . . . . . . . 2 . . . . 4 . . . . 4 . . . . 1 . . . . 3 . . 1 . . . . Matter 2513 | . . . . . . . . . 159 . . . . 361 . . . . 445 . . . . 285 . . . . 639 . . 624 . . . . Time 908 | . . . . . . . . . 106 . . . . 157 . . . . 99 . . . . 76 . . . . 304 . . 166 . . . . Total Part Build Rating 69 | . . . . . . . . . 12 . . . . 14 . . . . 14 . . . . 5 . . . . 15 . . 9 . . . . Parts Repaired 20 | . . . . . . . . . . . . . . . 9 . . . 3 . . . . 2 . . . . . 6 . . . . . . Time 916 | . . . . . . . . . . . . . . . 564 . . . 152 . . . . 41 . . . . . 159 . . . . . . Parts Recycled . | . . . . . . . . . . . . . . . . . . . . . . . . . . . . . . . . . . . . . Recycled Matter . | . . . . . . . . . . . . . . . . . . . . . . . . . . . . . . . . . . . . . Retrieved Matter . | . . . . . . . . . . . . . . . . . . . . . . . . . . . . . . . . . . . . . Retrieved Components . | . . . . . . . . . . . . . . . . . . . . . . . . . . . . . . . . . . . . . Parts Scanalyzed 2 | . . . 1 . . . . . . . . . . . . . . . . . . . . . . . . . . 1 . . . . . . Part Schematics Acquired 2 | . . . 1 . . . . . . . . . . . . . . . . . . . . . . . . . . 1 . . . . . . Parts Damaged . | . . . . . . . . . . . . . . . . . . . . . . . . . . . . . . . . . . . . . Bothacking | -11 -10 -10 -9 -9 -9 -8 -8 -8 -7 -7 -7 -7 -6 -6 -6 -6 -6 -6 -5 -5 -5 -5 -4 -4 -4 -4 -4 -3 -3 -3 -2 -2 -2 -1 -1 -1 ------------ Run | Scr Mat Min Mat Min Exi Min Mat Sto Fac Low Low Dat Pro Fac Ext Cet Arc Hub Fac Upp Upp Zhi Pro Fac Upp Upp War Pro Res Qua Res Tes Sec Acc Com Ac0 Used RIF Installer . | . . . . . . . . . . . . . . . . . . . . . . . . . . . . . . . . . . . . . Robots Hacked 1 | . . . . . . . . . . . . . . . . . 1 . . . . . . . . . . . . . . . . . . . Non-combat 1 | . . . . . . . . . . . . . . . . . 1 . . . . . . . . . . . . . . . . . . . Combat . | . . . . . . . . . . . . . . . . . . . . . . . . . . . . . . . . . . . . . Robot Hacks Applied 1 | . . . . . . . . . . . . . . . . . 1 . . . . . . . . . . . . . . . . . . . check_alert 1 | . . . . . . . . . . . . . . . . . 1 . . . . . . . . . . . . . . . . . . . Relay Couplers Released 10 | . . . . . . . . . 3 . . . . . . . . . . . . . . . . . . . . 6 . . 1 . . . Machine Destruction 4 | . . . . . . . . . 3 . . . . . . . . . . . . . . . . . . . . . . . 1 . . . Programmers 6 | . . . . . . . . . . . . . . . . . . . . . . . . . . . . . . 6 . . . . . . Robots Rewired 17 | . . . . . . . . . . 1 . . . . 11 . . . . . . . . . . . 5 . . . . . . . . . Allies Hacked . | . . . . . . . . . . . . . . . . . . . . . . . . . . . . . . . . . . . . . Hacks Repelled . | . . . . . . . . . . . . . . . . . . . . . . . . . . . . . . . . . . . . . Allies | -11 -10 -10 -9 -9 -9 -8 -8 -8 -7 -7 -7 -7 -6 -6 -6 -6 -6 -6 -5 -5 -5 -5 -4 -4 -4 -4 -4 -3 -3 -3 -2 -2 -2 -1 -1 -1 -------- Run | Scr Mat Min Mat Min Exi Min Mat Sto Fac Low Low Dat Pro Fac Ext Cet Arc Hub Fac Upp Upp Zhi Pro Fac Upp Upp War Pro Res Qua Res Tes Sec Acc Com Ac0 Total Allies 27 | . 1 . 1 . . . 1 . 1 1 . . . 1 14 . . 1 1 . . . . . . . 5 . . . . . . . . . Largest Group 8 | . 1 1 2 2 2 2 3 3 2 3 2 2 1 2 8 5 1 2 2 2 2 2 2 1 1 1 6 1 1 1 1 1 1 1 1 1 Highest-Rated Group 414 | . 62 62 78 78 78 78 95 115 129 146 126 126 115 180 329 261 144 158 224 224 227 227 227 176 176 174 414 175 192 200 205 223 226 237 248 247 Highest-Rated Ally 248 | . 62 62 68 68 68 68 75 95 103 103 106 112 115 115 135 141 144 148 159 159 162 162 162 176 176 174 175 175 192 200 205 223 226 237 248 247 Total Orders 85 | . . . . . . . 5 4 19 1 1 3 4 2 . 1 . . . . . . . . . . . . . 2 6 9 2 . 9 17 STAY 6 | . . . . . . . 3 2 . . . . . . . . . . . . . . . . . . . . . . . . . . 1 . ROAM 4 | . . . . . . . . . . 1 . 1 . 1 . 1 . . . . . . . . . . . . . . . . . . . . FOLLOW 6 | . . . . . . . 2 2 1 . . . . 1 . . . . . . . . . . . . . . . . . . . . . . EXPLORE 39 | . . . . . . . . . 11 . 1 . 3 . . . . . . . . . . . . . . . . 1 3 6 1 . 4 9 RETURN 30 | . . . . . . . . . 7 . . 2 1 . . . . . . . . . . . . . . . . 1 3 3 1 . 4 8 Ally Attacks 610 | . 12 9 7 2 . 3 9 19 16 16 20 19 11 44 60 28 2 18 9 3 3 . 12 3 1 3 56 11 5 25 11 46 21 9 51 46 Total Damage 58969 | . 386 238 215 59 . 60 464 1162 857 1030 704 1340 520 1462 2797 1114 838 1566 793 335 320 . 1083 316 21 298 2286 1087 494 2736 976 4754 8986 2002 11816 5854 Kills 274 | . 9 2 5 2 . 1 5 12 10 5 7 3 7 11 17 12 7 11 8 3 3 . 5 3 1 3 11 4 1 7 4 19 28 11 32 5 Allies Corrupted 2 | . . . . . . . . . 1 . . . . 1 . . . . . . . . . . . . . . . . . . . . . . Allies Melted 1 | . . . . . . . . . . . . . . . 1 . . . . . . . . . . . . . . . . . . . . . Intel | -11 -10 -10 -9 -9 -9 -8 -8 -8 -7 -7 -7 -7 -6 -6 -6 -6 -6 -6 -5 -5 -5 -5 -4 -4 -4 -4 -4 -3 -3 -3 -2 -2 -2 -1 -1 -1 ------- Run | Scr Mat Min Mat Min Exi Min Mat Sto Fac Low Low Dat Pro Fac Ext Cet Arc Hub Fac Upp Upp Zhi Pro Fac Upp Upp War Pro Res Qua Res Tes Sec Acc Com Ac0 Robot Analysis Total 12 | . 4 . . . . . . 1 . . . . . . . . . . . . . 4 . . . . . . 1 2 . . . . . . Derelict Logs Recovered 9 | . . 1 . . . . . . . 1 1 . 1 . . . . . . 2 1 . . . . 2 . . . . . . . . . . Drone Launches 75 | . . . . . . . . . 17 5 4 7 2 . . . . . . . . . . . . . . . . 1 9 10 2 . 8 10 Drone Recoveries 65 | . . . . . . . . . 14 . 8 5 2 . . . . . . . . . . . . . . . . 1 9 8 2 . 7 9 Exploration | -11 -10 -10 -9 -9 -9 -8 -8 -8 -7 -7 -7 -7 -6 -6 -6 -6 -6 -6 -5 -5 -5 -5 -4 -4 -4 -4 -4 -3 -3 -3 -2 -2 -2 -1 -1 -1 ------------- Run | Scr Mat Min Mat Min Exi Min Mat Sto Fac Low Low Dat Pro Fac Ext Cet Arc Hub Fac Upp Upp Zhi Pro Fac Upp Upp War Pro Res Qua Res Tes Sec Acc Com Ac0 Turns Passed 36609 | 191 695 1179 1071 201 559 336 317 1510 1372 453 442 355 313 732 2405 271 741 403 1038 967 430 245 550 544 640 621 1286 1321 793 3161 301 2293 616 1122 6432 703 Spaces Moved 17998 | 99 409 784 602 124 428 239 160 944 670 315 319 140 163 301 1011 132 197 212 445 577 247 134 297 275 362 309 656 682 279 1411 99 1098 222 607 2836 213 Core 26 | 13 . . . . . . . . . . . . . . . . . . . . . . . . . . . . . . . . . . . 13 Treads 11100 | 46 . . . . . . . . . . . . . . . . 106 212 445 577 247 134 297 275 362 309 656 682 279 1411 99 1098 222 607 2836 200 Legs 2672 | 40 409 784 602 124 428 239 46 . . . . . . . . . . . . . . . . . . . . . . . . . . . . . Wheels 4200 | . . . . . . . 114 944 670 315 319 140 163 301 1011 132 91 . . . . . . . . . . . . . . . . . . . Hover . | . . . . . . . . . . . . . . . . . . . . . . . . . . . . . . . . . . . . . Flight . | . . . . . . . . . . . . . . . . . . . . . . . . . . . . . . . . . . . . . Fastest Speed 50 | 50 120 120 120 120 120 120 100 100 100 100 100 100 115 100 130 130 130 160 160 160 160 160 160 160 160 160 160 160 163 163 163 160 160 160 160 50 Average Speed 143 | 129 120 120 120 120 120 122 106 100 100 100 104 112 115 117 130 130 146 160 160 160 160 160 160 160 160 160 160 160 163 163 163 161 160 160 160 153 Slowest Speed 260 | 160 120 120 200 120 200 125 123 100 100 100 115 115 115 130 130 130 160 160 160 160 160 160 160 160 160 160 260 160 163 163 163 163 160 160 260 160 Overloaded Moves . | . . . . . . . . . . . . . . . . . . . . . . . . . . . . . . . . . . . . . Propulsion Burnouts . | . . . . . . . . . . . . . . . . . . . . . . . . . . . . . . . . . . . . . Robots Hopped . | . . . . . . . . . . . . . . . . . . . . . . . . . . . . . . . . . . . . . Cave-ins Triggered . | . . . . . . . . . . . . . . . . . . . . . . . . . . . . . . . . . . . . . Teleports 3 | . . . . . . . . . . . . . . . . . . . . . . . . . . . . . . . . . 1 . 1 1 Exploration Rate (%) 50 | 5 64 93 41 31 71 85 14 68 26 44 64 82 55 6 76 59 78 24 10 78 57 60 52 13 57 56 82 88 10 92 6 92 16 16 73 37 Regions Visited 36 Branch Regions 26 Pre-discovered Areas 11 | . 2 . . . 1 . . . . . . 1 . . . . . . . 1 1 3 . . . 1 1 . . . . . . . . . Known Exits Taken 16 | . . . . . . 1 . . 1 . 1 . 1 1 . . . 1 1 . . . . 1 1 1 1 1 1 1 . . 1 1 . . Unknown Exits Taken 20 | 1 1 1 1 1 1 . 1 1 . 1 . 1 . . 1 1 1 . . 1 1 1 1 . . . . . . . 1 1 . . 1 . Scrap Searched 26 | . . 1 . . . 2 . . . 1 2 . . . . . . . . 3 3 . 4 . 4 1 . 5 . . . . . . . . Spaces Dug 92 | . . . 30 . . . . . . 7 . . . 2 3 . . 6 5 . . . 2 . . . 1 . . . 1 1 3 25 6 . Terrain Destroyed 942 | . . . 30 . . . 17 4 . 7 19 . . 31 34 20 6 13 25 10 12 . 28 7 8 9 48 7 2 20 29 22 35 39 77 383 Melee 9 | . . . . . . . . . . . . . . 2 . . . . . . . . . . . . . . . . . . . 1 6 . Projectile 292 | . . . . . . . . 4 . . . . . 29 20 20 6 13 25 10 12 . 28 7 8 9 4 7 2 20 29 22 11 2 1 3 AOE 623 | . . . 30 . . . 17 . . 7 19 . . . 14 . . . . . . . . . . . 44 . . . . . 24 28 60 380 Terrain Rammed . | . . . . . . . . . . . . . . . . . . . . . . . . . . . . . . . . . . . . . Walls Destroyed . | . . . . . . . . . . . . . . . . . . . . . . . . . . . . . . . . . . . . . Machines Disabled . | . . . . . . . . . . . . . . . . . . . . . . . . . . . . . . . . . . . . . Actions | -11 -10 -10 -9 -9 -9 -8 -8 -8 -7 -7 -7 -7 -6 -6 -6 -6 -6 -6 -5 -5 -5 -5 -4 -4 -4 -4 -4 -3 -3 -3 -2 -2 -2 -1 -1 -1 --------- Run | Scr Mat Min Mat Min Exi Min Mat Sto Fac Low Low Dat Pro Fac Ext Cet Arc Hub Fac Upp Upp Zhi Pro Fac Upp Upp War Pro Res Qua Res Tes Sec Acc Com Ac0 Total 27742 | 140 584 1012 919 173 473 269 279 1485 1371 438 419 321 272 640 2073 207 634 255 742 613 272 166 351 367 419 429 883 905 613 2200 201 1554 433 716 4477 437 Wait 7715 | 4 118 217 267 37 37 16 61 468 676 100 75 150 88 243 953 38 382 22 243 24 12 20 28 69 44 112 141 210 309 671 50 297 129 67 1255 82 Move 17963 | 98 408 783 601 123 427 238 159 943 669 314 318 139 162 300 1010 131 196 211 444 576 246 133 296 274 361 308 656 681 278 1410 98 1097 221 606 2835 213 Hop . | . . . . . . . . . . . . . . . . . . . . . . . . . . . . . . . . . . . . . Pick Up 222 | 4 8 1 6 1 5 2 6 9 5 . 5 5 2 6 8 5 10 . 8 4 4 3 2 2 3 1 9 4 6 11 6 26 6 3 30 6 Fast Attach 160 | 10 4 . 10 2 1 . 7 5 4 . 1 2 1 12 9 1 2 . 5 . 1 4 . 2 . . 5 . . 12 . 10 2 . 45 3 Attach 125 | 1 . . 2 . . 1 5 1 3 . 3 4 1 7 3 . 4 . 2 . . . 1 3 . . 12 . 5 3 3 10 6 6 32 7 Detach 116 | 4 4 . . 1 1 . 3 1 2 . 3 2 . 13 . 2 2 . 1 . . 2 . 1 . . 14 . 3 2 . 1 4 4 42 4 Swap 117 | 1 2 . 6 4 . 1 3 5 1 2 2 3 . 4 4 1 1 2 7 2 . . . 2 . . 2 . 3 2 3 10 9 5 21 9 Drop 275 | . 15 1 9 3 2 1 13 12 8 . 3 2 2 12 9 3 13 . 5 . . 4 2 2 4 . 15 2 2 15 3 39 5 3 56 10 Fire 861 | 18 22 6 15 2 . 8 19 26 3 14 9 12 15 41 27 26 23 19 26 7 9 . 22 11 4 7 19 8 5 74 38 56 44 17 111 98 Melee 67 | . . . . . . . . . . . . 2 1 2 . . 1 . . . . . . . . . . . . . . 6 . 5 50 . Ram . | . . . . . . . . . . . . . . . . . . . . . . . . . . . . . . . . . . . . . Kick 15 | . 3 4 3 . . 2 3 . . . . . . . . . . . . . . . . . . . . . . . . . . . . . Crush 20 | . . . . . . . . . . . . . . . . . . 1 1 . . . . 1 3 . . . . . . 2 7 . . 5 Escape Stasis 31 | . . . . . . . . . . . . . . . 29 . . . . . . . . . . . . . 2 . . . . . . . Rewire 40 | . . . . . . . . . . 8 . . . . 21 . . . . . . . . . . 1 10 . . . . . . . . . Trap 15 | . . . . . . . . 15 . . . . . . . . . . . . . . . . . . . . . . . . . . . . Miscellaneous . | . . . . . . . . . . . . . . . . . . . . . . . . . . . . . . . . . . . . . Route ------- -11/Scrapyard -10/Materials (discovered 2 exits: *Mat / [*Min]) -10/Mines (discovered 2 exits: *Mat x2) -9/Materials (discovered 4 exits: *Mat x3 / [*Min]) -9/Mines -9/Exiles (discovered 2 exits: [*Min x2]) -8/Mines (discovered 2 exits: *Mat x2) -8/Materials -8/Storage -7/Factory (discovered 2 exits: *Fac / *Low) -7/Lower Caves -7/Lower Caves (discovered 2 exits: *Fac / *Dat) -7/Data Miner -6/Proximity Caves -6/Factory (discovered 8 exits: *Fac x4 / Low x2 / *Ext x2) -6/Extension (discovered 3 exits: *Fac x2 / [*Cet]) -6/Cetus -6/Archives (discovered 3 exits: *Fac / *Hub x2) -6/Hub_04(d) (discovered 4 exits: *Fac x4) -5/Factory -5/Upper Caves -5/Upper Caves (discovered 2 exits: *Fac / *Zhi) -5/Zhirov -4/Proximity Caves -4/Factory (discovered 3 exits: *Upp x2 / Arm) -4/Upper Caves -4/Upper Caves -4/Warlord -3/Proximity Caves -3/Research (discovered 5 exits: Res x3 / *Qua x2) -3/Quarantine -2/Research (discovered 4 exits: Acc x3 / *Tes) -2/Testing -2/Section 7 -1/Access -1/Command (discovered 3 exits: [*Sur x2] / [*Ac0]) -1/Access_0 (discovered 1 exit: [*Sur]) History --------- Turn | Location | Event 8 | -11/Scrapyard | Discovered new exit (range 15) 192 | -11/Scrapyard | Entered Materials 307 | -10/Materials | Build established: Mutant 590 | -10/Materials | Discovered new exit (range 16) 721 | -10/Materials | Discovered new exit (range 10) 887 | -10/Materials | Entered Mines 887 | -10/Mines | Accompanied by 1 ally 1105 | -10/Mines | Discovered new exit (range 9) 1501 | -10/Mines | Learned Materials stockpile data 1771 | -10/Mines | Received a Rocket Launcher from a helpful Derelict 1816 | -10/Mines | Discovered new exit (range 7) 2066 | -10/Mines | Entered Materials 2066 | -9/Materials | Accompanied by 1 ally 2066 | -9/Materials | Evolved 2 slots: Utility x2 2159 | -9/Materials | Identified exit to Materials 3046 | -9/Materials | Discovered new exit (range 18) 3137 | -9/Materials | Entered Mines 3137 | -9/Mines | Accompanied by 2 allies 3138 | -9/Mines | Met a Derelict bent on vengeance 3315 | -9/Mines | Deemed a non-threat by the Exiles lab entrance 3315 | -9/Mines | Discovered new exit (range 5) 3338 | -9/Mines | Entered Exiles 3338 | -9/Exiles | Accompanied by 2 allies 3356 | -9/Exiles | Discovered new exit (range 17) 3368 | -9/Exiles | Met 8R-AWN 3386 | -9/Exiles | Met EX-HEX 3435 | -9/Exiles | Build established: Scavenger-Mutant 3461 | -9/Exiles | Met EX-DEC 3484 | -9/Exiles | Learned location of Zion (-6) 3629 | -9/Exiles | Met EX-BIN 3703 | -9/Exiles | Aligned with FarCom system 3704 | -9/Exiles | Given EX-Vault access code 3733 | -9/Exiles | Opened EX-Vault 3740 | -9/Exiles | Found Modified TNC 3742 | -9/Exiles | Found Chronowheel 3745 | -9/Exiles | Found Supersonic Drone Bay 3766 | -9/Exiles | Build established: Mutant 3770 | -9/Exiles | Warned to stay clear of 0b10 Research branches 3847 | -9/Exiles | Discovered new exit (range 15) 3897 | -9/Exiles | Stole three prototypes: Modified TNC, Supersonic Drone Bay, Chronowheel 3897 | -9/Exiles | Entered Mines 3897 | -8/Mines | Accompanied by 2 allies 4207 | -8/Mines | Discovered exit to Materials (range 8) 4216 | -8/Mines | Discovered exit to Materials (range 14) 4233 | -8/Mines | Entered Materials 4233 | -8/Materials | Accompanied by 2 allies 4233 | -8/Materials | Evolved 2 slots: Propulsion x2 4454 | -8/Materials | Discovered new exit (range 15) 4550 | -8/Materials | Entered Storage 4550 | -8/Storage | Accompanied by 3 allies 4943 | -8/Storage | Build established: Hacker-Mutant 5813 | -8/Storage | Garrison activated, responded to threat 6011 | -8/Storage | Discovered new exit (range 16) 6060 | -8/Storage | Entered Factory 6060 | -7/Factory | Accompanied by 2 allies 6060 | -7/Factory | Evolved 2 slots: Utility x2 6062 | -7/Factory | FarCom data flow suspended 6193 | -7/Factory | Fabricated Imp. Launcher Guidance Computer (x2) 6350 | -7/Factory | Local fabrication network quarantined 7272 | -7/Factory | Discovered new exit (range 21) 7277 | -7/Factory | Discovered new exit (range 29) 7347 | -7/Factory | Identified exit to Factory 7376 | -7/Factory | Cargo convoy interrupted 7406 | -7/Factory | Identified exit to Lower Caves 7432 | -7/Factory | Entered Lower Caves 7432 | -7/Lower Caves | Accompanied by 2 allies 7438 | -7/Lower Caves | Encountered a Warlord checkpoint 7444 | -7/Lower Caves | Learned Factory trap positions 7560 | -7/Lower Caves | Spotted B-75 Beast 7590 | -7/Lower Caves | Allies destroyed B-75 Beast 7815 | -7/Lower Caves | Discovered new exit (range 6) 7885 | -7/Lower Caves | Entered another Lower Caves area 7885 | -7/Lower Caves | Accompanied by 7 allies 7885 | -7/Lower Caves | Spotted QQ-UAV(f) 7885 | -7/Lower Caves | Spotted 9H-M2S(f) 7886 | -7/Lower Caves | Encountered a Master Thief 7886 | -7/Lower Caves | Encountered a Master Thief 7886 | -7/Lower Caves | Discovered exit to Factory (range 15) 7886 | -7/Lower Caves | Supersonic Drone Bay stolen by Master Thief 7892 | -7/Lower Caves | Spotted V5-D3C(f) 7896 | -7/Lower Caves | Encountered a Master Thief 7901 | -7/Lower Caves | Destroyed QQ-UAV(f) 7906 | -7/Lower Caves | Allies destroyed V5-D3C(f) 7995 | -7/Lower Caves | Ambushed by wild Derelicts 8170 | -7/Lower Caves | Identified exit to Data Miner 8218 | -7/Lower Caves | Build established: Mutant 8327 | -7/Lower Caves | Entered Data Miner 8327 | -7/Data Miner | Accompanied by 2 allies 8327 | -7/Data Miner | Discovered new exit (range 6) 8342 | -7/Data Miner | Met Data Miner 8375 | -7/Data Miner | Learned location of Section 7 (-2) 8375 | -7/Data Miner | Acquired the access code to Warlord's prototype stash 8392 | -7/Data Miner | Received God Mode back door access code from Data Miner 8406 | -7/Data Miner | Activated Chronowheel 8414 | -7/Data Miner | Destroyed Data Miner 8427 | -7/Data Miner | Data Conduit disabled 8489 | -7/Data Miner | Found Prototype Hackware 8491 | -7/Data Miner | Found Prototype Hackware 8493 | -7/Data Miner | Found Prototype Hackware 8496 | -7/Data Miner | Found Prototype Hackware 8503 | -7/Data Miner | Lost 4 parts (1p1n1u1w) 8682 | -7/Data Miner | Entered Proximity Caves 8682 | -6/Proximity Caves | Accompanied by 3 allies 8684 | -6/Proximity Caves | Learned 4 Factory zone layouts 8721 | -6/Proximity Caves | Core integrity fell below 50% 8953 | -6/Proximity Caves | Found Alien Artifact 8976 | -6/Proximity Caves | Discovered exit to Factory (range 5) 8995 | -6/Proximity Caves | Entered Factory 8995 | -6/Factory | Accompanied by 1 ally 8995 | -6/Factory | Evolved 2 slots: Utility x2 8996 | -6/Factory | Identified exit to Factory 8997 | -6/Factory | Loaded intel: 124 trap records 9014 | -6/Factory | Identified System Mapper 9015 | -6/Factory | Identified Deep Network Scanner 9016 | -6/Factory | Identified Ghost Barrier 9017 | -6/Factory | Identified Quantum Router 9040 | -6/Factory | Identified exit to Lower Caves 9040 | -6/Factory | Identified exit to Extension 9084 | -6/Factory | Fabricated Imp. Utility Shielding (x2) 9171 | -6/Factory | Fabricated I-47 Archangel (x1) 9213 | -6/Factory | Fabricated Med. Reactive Plating (x1) 9255 | -6/Factory | Fabricated Med. Reactive Plating (x1) 9298 | -6/Factory | Build established: Wizard-Mutant 9434 | -6/Factory | Cargo convoy interrupted 9475 | -6/Factory | Local fabrication network quarantined 9511 | -6/Factory | Found Prototype Slashing Weapon 9511 | -6/Factory | Identified Centrium Greatsword 9522 | -6/Factory | Found Prototype Device 9522 | -6/Factory | Identified Adv. Kinecellerator 9695 | -6/Factory | First assault squad dispatched 9707 | -6/Factory | Core integrity fell below 50% 9727 | -6/Factory | Entered Extension 9727 | -6/Extension | Accompanied by 1 ally 9740 | -6/Extension | Rescued a captive Derelict 9741 | -6/Extension | Rescued a captive Derelict 9742 | -6/Extension | Rescued a captive Derelict 9742 | -6/Extension | Rescued a captive Derelict 9744 | -6/Extension | Rescued a captive Derelict 9749 | -6/Extension | Rescued a captive Derelict 9749 | -6/Extension | Rescued a captive Derelict 9749 | -6/Extension | Rescued a captive Derelict 9752 | -6/Extension | Rescued a captive Derelict 9764 | -6/Extension | Rescued a captive Derelict 9984 | -6/Extension | Repaired Med. Reactive Plating 10103 | -6/Extension | Repaired Arm. Huge Wheel 10142 | -6/Extension | Repaired Imp. Utility Shielding 10233 | -6/Extension | Repaired Enh. Fission Core 10323 | -6/Extension | Repaired Tri-rail Accelerator 10413 | -6/Extension | Repaired Tri-rail Accelerator 10545 | -6/Extension | Spotted B-75 Beast 10550 | -6/Extension | Spotted B-75 Beast 10557 | -6/Extension | Destroyed B-75 Beast 10562 | -6/Extension | Allies destroyed B-75 Beast 10567 | -6/Extension | Discovered exit to Factory (range 15) 10578 | -6/Extension | Extracted ID and sensor layout for unrecognized location from A7's data core 11436 | -6/Extension | Repaired Imp. Utility Shielding 11482 | -6/Extension | Repaired Med. Reactive Plating 11572 | -6/Extension | Repaired Tri-rail Accelerator 11923 | -6/Extension | Central database locked down 12030 | -6/Extension | Discovered exit to Factory (range 10) 12031 | -6/Extension | Discovered new exit (range 6) 12132 | -6/Extension | Disrupted transfer network 12132 | -6/Extension | Entered Cetus 12132 | -6/Cetus | Accompanied by 5 allies 12151 | -6/Cetus | Spotted Cetus Guard 12151 | -6/Cetus | Spotted Cetus Guard 12151 | -6/Cetus | Allies destroyed Cetus Guard 12152 | -6/Cetus | Spotted Cetus Guard 12162 | -6/Cetus | Destroyed Cetus Guard 12162 | -6/Cetus | Spotted Cetus Guard 12162 | -6/Cetus | Allies destroyed Cetus Guard 12164 | -6/Cetus | Allies destroyed Cetus Guard 12280 | -6/Cetus | Discovered new exit (range 16) 12338 | -6/Cetus | Spotted Cetus Guard 12338 | -6/Cetus | Spotted Cetus Guard 12339 | -6/Cetus | Allies destroyed Cetus Guard 12342 | -6/Cetus | Spotted Cetus Guard 12345 | -6/Cetus | Allies destroyed Cetus Guard 12346 | -6/Cetus | Spotted Cetus Guard 12348 | -6/Cetus | Allies destroyed Cetus Guard 12354 | -6/Cetus | Allies destroyed Cetus Guard 12403 | -6/Cetus | Entered Archives 12403 | -6/Archives | Accompanied by 1 ally 12482 | -6/Archives | Discovered new exit (range 15) 12654 | -6/Archives | Discovered exit to Factory (range 16) 12912 | -6/Archives | Discovered new exit (range 14) 13144 | -6/Archives | Entered Hub_04(d) 13144 | -6/Hub_04(d) | Accompanied by 1 ally 13516 | -6/Hub_04(d) | Network Hub disabled 13516 | -6/Hub_04(d) | Network Hub disabled 13547 | -6/Hub_04(d) | Entered Factory 13547 | -5/Factory | Accompanied by 1 ally 13547 | -5/Factory | Evolved 2 slots: Power x1, Utility x1 13598 | -5/Factory | Discovered new exit (range 11) 13625 | -5/Factory | Identified exit to Upper Caves 14055 | -5/Factory | Fabricated I-47 Archangel (x1) 14058 | -5/Factory | Fabricated Med. Reactive Plating? 14102 | -5/Factory | Fabricated Imp. Utility Shielding? 14117 | -5/Factory | Fabricated Med. Reactive Plating (x1) 14227 | -5/Factory | Repaired Tri-rail Accelerator 14281 | -5/Factory | Repaired Centrium Heavy Treads 14335 | -5/Factory | Repaired Centrium Heavy Treads 14585 | -5/Factory | Entered Upper Caves 14585 | -5/Upper Caves | Accompanied by 2 allies 14634 | -5/Upper Caves | Attracted the attention of an 0b10 checkpoint 14917 | -5/Upper Caves | Encountered a Warlord checkpoint 15329 | -5/Upper Caves | Discovered new exit (range 6) 15446 | -5/Upper Caves | Learned location of Warlord (-4) 15475 | -5/Upper Caves | Learned Factory garrison access intel 15552 | -5/Upper Caves | Entered another Upper Caves area 15552 | -5/Upper Caves | Accompanied by 2 allies 15552 | -5/Upper Caves | Discovered new exit (range 13) 15598 | -5/Upper Caves | Learned location of Armory (-4) 15919 | -5/Upper Caves | Spotted VJ-SDJ(f) 15920 | -5/Upper Caves | Spotted JK-X1F(f) 15921 | -5/Upper Caves | Encountered a Master Thief 15921 | -5/Upper Caves | Encountered a Master Thief 15921 | -5/Upper Caves | Spotted F1-I3L(f) 15922 | -5/Upper Caves | Encountered a Master Thief 15922 | -5/Upper Caves | Spotted 6A-NIC(f) 15923 | -5/Upper Caves | Encountered a Master Thief 15924 | -5/Upper Caves | Alien Artifact stolen by Master Thief 15925 | -5/Upper Caves | Allies destroyed VJ-SDJ(f) 15925 | -5/Upper Caves | Allies destroyed JK-X1F(f) 15932 | -5/Upper Caves | Allies destroyed F1-I3L(f) 15932 | -5/Upper Caves | Destroyed 6A-NIC(f) 15969 | -5/Upper Caves | Discovered new exit (range 6) 15982 | -5/Upper Caves | Entered Zhirov 15982 | -5/Zhirov | Accompanied by 2 allies 15982 | -5/Zhirov | Discovered new exit (range 3) 16011 | -5/Zhirov | Met Zhirov 16050 | -5/Zhirov | Found Alien Artifact 16050 | -5/Zhirov | Identified Integrated Reactor 16050 | -5/Zhirov | Installed Integrated Reactor, increased core energy generation (+10) 16126 | -5/Zhirov | Found Alien Artifact 16161 | -5/Zhirov | Learned location of Quarantine (-3) 16161 | -5/Zhirov | Learned location of Testing (-2) 16161 | -5/Zhirov | Learned location of Command (-1) 16175 | -5/Zhirov | Zhirov requested help retrieving the SGEMP Prototype 16227 | -5/Zhirov | Entered Proximity Caves 16227 | -4/Proximity Caves | Accompanied by 2 allies 16239 | -4/Proximity Caves | Attracted the attention of an 0b10 checkpoint 16547 | -4/Proximity Caves | Spotted B-86 Titan 16561 | -4/Proximity Caves | Allies destroyed B-86 Titan 16741 | -4/Proximity Caves | Discovered new exit (range 15) 16777 | -4/Proximity Caves | Entered Factory 16777 | -4/Factory | Accompanied by 1 ally 16777 | -4/Factory | Evolved 2 slots: Utility x2 16778 | -4/Factory | Loaded intel: 4 garrison access locations 16931 | -4/Factory | Repaired Med. Reactive Plating? 16964 | -4/Factory | Repaired Imp. Utility Shielding? 17001 | -4/Factory | Identified exit to Upper Caves 17001 | -4/Factory | Identified exit to Armory 17271 | -4/Factory | Local fabrication network quarantined 17297 | -4/Factory | Fabricated Exp. Utility Shielding (x1) 17321 | -4/Factory | Entered Upper Caves 17321 | -4/Upper Caves | Accompanied by 1 ally 17554 | -4/Upper Caves | Encountered a Warlord checkpoint 17585 | -4/Upper Caves | Build established: Wizard-Skirmisher 17922 | -4/Upper Caves | Discovered new exit (range 6) 17934 | -4/Upper Caves | Identified exit to Upper Caves 17961 | -4/Upper Caves | Entered another Upper Caves area 17961 | -4/Upper Caves | Accompanied by 1 ally 18434 | -4/Upper Caves | Learned Research emergency access door positions 18544 | -4/Upper Caves | Attracted the attention of an 0b10 checkpoint 18555 | -4/Upper Caves | Discovered new exit (range 10) 18574 | -4/Upper Caves | Identified exit to Warlord 18582 | -4/Upper Caves | Entered Warlord 18582 | -4/Warlord | Accompanied by 1 ally 19066 | -4/Warlord | Learned Quarantine security intel 19066 | -4/Warlord | Learned Factory garrison access intel 19066 | -4/Warlord | Learned Research repair station intel 19066 | -4/Warlord | Learned Research recycling unit intel 19066 | -4/Warlord | Learned Research garrison access intel 19261 | -4/Warlord | Warlord's base attacked by MAIN.C 19279 | -4/Warlord | Found Prototype Energy Cannon 19279 | -4/Warlord | Identified Vortex Cannon 19284 | -4/Warlord | Found Prototype Launcher 19284 | -4/Warlord | Identified Vortex Catalyst Activator 19291 | -4/Warlord | Found Vortex Cannon 19400 | -4/Warlord | Met Warlord 19443 | -4/Warlord | Found Prototype Reactor 19454 | -4/Warlord | Found System Mapper 19458 | -4/Warlord | Found Prototype Processor 19458 | -4/Warlord | Identified Spectral Analyzer 19462 | -4/Warlord | Found Prototype Device 19462 | -4/Warlord | Identified System Purifier 19583 | -4/Warlord | Identified Vortex Chain Reactor 19593 | -4/Warlord | Warlord forces counterattacked 19619 | -4/Warlord | Spotted Striker 19635 | -4/Warlord | Destroyed Striker 19684 | -4/Warlord | Spotted Striker 19691 | -4/Warlord | Spotted Striker 19700 | -4/Warlord | Spotted Executioner 19702 | -4/Warlord | Destroyed Executioner 19720 | -4/Warlord | Discovered new exit (range 22) 19762 | -4/Warlord | Spotted Striker 19764 | -4/Warlord | P-70 Sage assimilated allied Disruptor 7b 19767 | -4/Warlord | Destroyed Striker 19767 | -4/Warlord | Spotted Executioner 19798 | -4/Warlord | Destroyed 9 combat bots 19810 | -4/Warlord | Identified exit to Proximity Caves 19867 | -4/Warlord | Spotted Executioner 19868 | -4/Warlord | Entered Proximity Caves 19868 | -3/Proximity Caves | Accompanied by 1 ally 20299 | -3/Proximity Caves | Attracted the attention of an 0b10 checkpoint 21161 | -3/Proximity Caves | Discovered new exit (range 5) 21169 | -3/Proximity Caves | Identified exit to Research 21189 | -3/Proximity Caves | Entered Research 21189 | -3/Research | Accompanied by 1 ally 21189 | -3/Research | Evolved 2 slots: Propulsion x1, Utility x1 21191 | -3/Research | Loaded intel: 4 repair station locations 21192 | -3/Research | Loaded intel: 4 recycling unit locations 21193 | -3/Research | Loaded intel: 4 garrison access locations 21221 | -3/Research | Identified exit to Quarantine 21221 | -3/Research | Identified exit to Research 21302 | -3/Research | Garrison activated, responded to threat 21389 | -3/Research | Revision forces began assault on 0b10 21476 | -3/Research | Met up with Revision 17++ 21520 | -3/Research | Build established: Wizard-Mutant 21747 | -3/Research | Fabricated Exp. Utility Shielding (x1) 21823 | -3/Research | Fabricated Exp. Targeting Computer (x1) 21889 | -3/Research | Research terminal network offline 21899 | -3/Research | Fabricated Exp. Targeting Computer (x1) 21982 | -3/Research | Entered Quarantine 21982 | -3/Quarantine | Accompanied by 1 ally 22010 | -3/Quarantine | Found Alien Slashing Weapon 22163 | -3/Quarantine | Cryocooling Duct disabled 22163 | -3/Quarantine | Cryocooling Duct disabled 22178 | -3/Quarantine | Ambient heat levels rising (+40) 22178 | -3/Quarantine | Non-combat units ordered to evacuate 22178 | -3/Quarantine | Combat units ordered to evacuate 22237 | -3/Quarantine | Found Alien Artifact 22272 | -3/Quarantine | Identified Dimensional Node Initializer 22272 | -3/Quarantine | Identified Transdimensional Reconstructor 22272 | -3/Quarantine | Identified Subatomic Replicator 22278 | -3/Quarantine | Quarantine Guard activated 22358 | -3/Quarantine | Spotted Quarantine Guard 22358 | -3/Quarantine | Spotted Quarantine Guard 22372 | -3/Quarantine | Spotted Quarantine Guard 22380 | -3/Quarantine | Destroyed Quarantine Guard 22521 | -3/Quarantine | Allies destroyed Quarantine Guard 22644 | -3/Quarantine | Spotted Quarantine Guard 22657 | -3/Quarantine | Destroyed Quarantine Guard 22682 | -3/Quarantine | Allies destroyed Quarantine Guard 22850 | -3/Quarantine | Spotted Quarantine Guard 22880 | -3/Quarantine | Destroyed Quarantine Guard 22962 | -3/Quarantine | Central database locked down 23011 | -3/Quarantine | Spotted Quarantine Guard 23023 | -3/Quarantine | Allies destroyed Quarantine Guard 23098 | -3/Quarantine | Spotted Quarantine Guard 23143 | -3/Quarantine | Allies destroyed Quarantine Guard 23222 | -3/Quarantine | Spotted Quarantine Guard 23236 | -3/Quarantine | Found Alien Artifact 23241 | -3/Quarantine | Found Alien Artifact 23243 | -3/Quarantine | Found Alien Artifact 23266 | -3/Quarantine | Spotted Quarantine Guard 23276 | -3/Quarantine | Destroyed Quarantine Guard 23284 | -3/Quarantine | Destroyed Quarantine Guard 23396 | -3/Quarantine | Repaired Tri-rail Accelerator 23423 | -3/Quarantine | Repaired Exp. Utility Shielding 23439 | -3/Quarantine | Repaired Med. Reactive Plating 23500 | -3/Quarantine | Identified Hpw. Transdimensional Reconstructor (x3) 23555 | -3/Quarantine | Repaired Centrium Heavy Treads 23593 | -3/Quarantine | Repaired Centrium Heavy Treads 23612 | -3/Quarantine | Repaired Adv. Cooling System 23642 | -3/Quarantine | Spotted Quarantine Guard 23651 | -3/Quarantine | Destroyed Quarantine Guard 23817 | -3/Quarantine | Spotted Quarantine Guard 23853 | -3/Quarantine | Spotted Quarantine Guard 23874 | -3/Quarantine | Allies destroyed Quarantine Guard 23903 | -3/Quarantine | Destroyed Quarantine Guard 24118 | -3/Quarantine | Found Alien Impact Weapon 24252 | -3/Quarantine | Found Alien Artifact 24424 | -3/Quarantine | Identified Core Reset Matrix 24424 | -3/Quarantine | Identified Core Stripper 24424 | -3/Quarantine | Identified Sigix Broadsword 25143 | -3/Quarantine | Entered Research 25143 | -2/Research | Accompanied by 1 ally 25143 | -2/Research | Warlord forces began assault on 0b10 25143 | -2/Research | Evolved 2 slots: Propulsion x1, Utility x1 25173 | -2/Research | Identified exit to Access 25241 | -2/Research | Spotted B-90 Cyclops 25253 | -2/Research | Research machine network offline 25299 | -2/Research | Destroyed B-90 Cyclops 25314 | -2/Research | Discovered new exit (range 29) 25444 | -2/Research | Entered Testing 25444 | -2/Testing | Accompanied by 1 ally 25469 | -2/Testing | Found Prototype Reactor 25469 | -2/Testing | Identified Zero-point Reactor 25477 | -2/Testing | Protovariant out of control (PD-314IEAOHE5) 25477 | -2/Testing | Found Zero-point Reactor 25482 | -2/Testing | Found Exp. Targeting Computer 25592 | -2/Testing | Found Prototype Ballistic Cannon 25678 | -2/Testing | Discovered exit to Access (range 31) 26690 | -2/Testing | Identified Perforator 26850 | -2/Testing | Spotted Striker 27064 | -2/Testing | Fabricated Exp. Force Field (x1) 27364 | -2/Testing | Found Prototype Energy Cannon 27370 | -2/Testing | Found Prototype Energy Cannon 27489 | -2/Testing | Spotted Fortress 27502 | -2/Testing | Destroyed Fortress 27511 | -2/Testing | Found Exp. Force Field 27535 | -2/Testing | Found Prototype Device 27535 | -2/Testing | Identified EM Dispersion Field 27643 | -2/Testing | Discovered new exit (range 6) 27734 | -2/Testing | Used Core Reset Matrix 27737 | -2/Testing | Entered Section 7 27737 | -2/Section 7 | Accompanied by 1 ally 27738 | -2/Section 7 | Sensed 24 artifacts in vicinity 27757 | -2/Section 7 | Found Integrity Redistributor 27758 | -2/Section 7 | Used Integrity Redistributor, redistributed integrity from core (-144) 27786 | -2/Section 7 | Garrison activated, responded to threat 27801 | -2/Section 7 | Identified Imp. Potential Cannon (x2) 27926 | -2/Section 7 | Found Integrity Redistributor 27987 | -2/Section 7 | First assault squad dispatched 28018 | -2/Section 7 | Warped through subspace 28033 | -2/Section 7 | Spotted S7 Guard 28047 | -2/Section 7 | Found Integrated Singularity Reactor 28062 | -2/Section 7 | Destroyed S7 Guard 28064 | -2/Section 7 | Used Subatomic Replicator to replicate Integrated Singularity Reactor 28066 | -2/Section 7 | Installed Integrated Singularity Reactor, increased core energy generation (+20) 28071 | -2/Section 7 | Installed Integrated Singularity Reactor, increased core energy generation (+20) 28353 | -2/Section 7 | Entered Access 28353 | -1/Access | Accompanied by 1 ally 28353 | -1/Access | Evolved 2 slots: Weapon x2 29258 | -1/Access | Identified exit to Command 29475 | -1/Access | Entered Command 29475 | -1/Command | Accompanied by 1 ally 29733 | -1/Command | Disengaged cave seal 29733 | -1/Command | Derelicts emerged from the dark tunnel 29734 | -1/Command | Welcomed Warlord to Command 29975 | -1/Command | First assault squad dispatched 29978 | -1/Command | Derelicts emerged from the dark tunnel 30027 | -1/Command | Spotted M Guard 30027 | -1/Command | Spotted M Guard 30029 | -1/Command | Spotted Combat Programmer 30029 | -1/Command | Spotted Combat Programmer 30032 | -1/Command | Warlord commented on Warlord statues 30049 | -1/Command | Destroyed Combat Programmer 30050 | -1/Command | Combat Programmer assimilated allied AK-UQS(g) 30067 | -1/Command | Destroyed M Guard 30084 | -1/Command | All MAIN.C guards destroyed 30335 | -1/Command | Met MAIN.C 30335 | -1/Command | 0b10 Conduit disabled 30337 | -1/Command | Warlord shut down involuntarily 30371 | -1/Command | Allies destroyed MAIN.C Shell 30372 | -1/Command | MAIN.C activated Command garrisons 30403 | -1/Command | Destroyed MAIN.C 30489 | -1/Command | Build established: Alien-Mutant 30639 | -1/Command | Destroyed 20 combat bots 30714 | -1/Command | Found Meganuke 30757 | -1/Command | Found Exp. Targeting Computer 31427 | -1/Command | Found Vortex Chain Reactor 31433 | -1/Command | Found Prototype Protection 31433 | -1/Command | Identified Centrium Heavy Armor Plating 31436 | -1/Command | Found Exp. Targeting Computer 31439 | -1/Command | Found Prototype Device 31439 | -1/Command | Identified Exp. Focal Shield 31491 | -1/Command | Found Z-bomb Delivery System 31794 | -1/Command | Discovered new exit (range 10) 32887 | -1/Command | Used Integrity Redistributor, redistributed integrity from core (-85) 34052 | -1/Command | Attacked by Warlord forces 35015 | -1/Command | Spotted B-99 Colossus 35028 | -1/Command | Destroyed B-99 Colossus 35731 | -1/Command | Discovered new exit (range 8) 35887 | -1/Command | Warped through subspace to slip node 35887 | -1/Command | Discovered new exit (range 4) 35907 | -1/Command | Entered Access_0 35907 | -1/Access_0 | Accompanied by 1 ally 35908 | -1/Access_0 | Sensed 1 artifact in vicinity 35910 | -1/Access_0 | Met Architect 35918 | -1/Access_0 | Allies destroyed A8 35923 | -1/Access_0 | Architect warped through subspace 35964 | -1/Access_0 | Architect warped through subspace 35995 | -1/Access_0 | Architect warped through subspace 36037 | -1/Access_0 | Architect warped through subspace 36071 | -1/Access_0 | Architect warped through subspace 36104 | -1/Access_0 | Architect warped through subspace 36106 | -1/Access_0 | Subspace Access Node disabled 36127 | -1/Access_0 | Subspace Access Node disabled 36146 | -1/Access_0 | Architect warped through subspace 36169 | -1/Access_0 | Architect warped through subspace 36192 | -1/Access_0 | Architect warped through subspace 36212 | -1/Access_0 | Architect warped through subspace 36230 | -1/Access_0 | Architect warped through subspace 36233 | -1/Access_0 | A6 warped into view 36245 | -1/Access_0 | Allies destroyed A6 36255 | -1/Access_0 | Architect warped through subspace 36281 | -1/Access_0 | Architect warped through subspace 36305 | -1/Access_0 | Architect warped through subspace 36323 | -1/Access_0 | Architect warped through subspace 36356 | -1/Access_0 | Architect warped through subspace 36376 | -1/Access_0 | Architect warped through subspace 36409 | -1/Access_0 | Architect warped through subspace 36416 | -1/Access_0 | Subspace Access Node disabled 36430 | -1/Access_0 | Architect warped through subspace 36458 | -1/Access_0 | Architect warped through subspace 36481 | -1/Access_0 | Architect warped through subspace 36515 | -1/Access_0 | Architect warped through subspace 36539 | -1/Access_0 | Triggered Meganuke 36539 | -1/Access_0 | Destroyed A2 36539 | -1/Access_0 | Subspace Access Node disabled 36540 | -1/Access_0 | Core integrity fell below 50% 36570 | -1/Access_0 | Lost 4 parts (1p2u1w) 36588 | -1/Access_0 | Released all parts (15) 36598 | -1/Access_0 | Allies destroyed Architect 36599 | -1/Access_0 | Architect triggered a singularity event 36601 | -1/Access_0 | Found Hpw. Transdimensional Reconstructor 36601 | -1/Access_0 | Warped through subspace to slip node 36601 | -1/Access_0 | Discovered new exit (range 8) 36610 | -1/Access_0 | Crushed by singularity! Last Messages --------------- 36588_ Acquired 3 matter. 36589_ Acquired 12 matter. 36598_ Architect: "If I can't win, no one wins!" 36598_ Architect destroyed. 36599_ A0_COM: Initiating irreversible singularity event. Goodbye. 36600_ A0_COM: 10. 36600_ Acquired 8 matter. 36601_ A0_COM: 9. 36601_ Acquired Hpw. Transdimensional Reconstructor. 36601_ Warped through subspace, drawn to slip node. 36601_ EXIT=FOUND 36602_ A0_COM: 8. 36603_ A0_COM: 7. 36604_ A0_COM: 6. 36605_ A0_COM: 5. 36606_ A0_COM: 4. 36607_ A0_COM: 3. 36608_ A0_COM: 2. 36609_ A0_COM: 1. 36609_ Dropped Imp. Potential Cannon. Map ----- +----------------------------------------------------+ | | | | | | | | | | | | | | | | | | | | | | | | | | | | | | | ?????????????????????????????????????????????????? | | ?????????????????????????????????????????????????? | | ?????????????????????????????????????????????????? | | ?????????????????????????????????????????????????? | | ?????????????????????????????????????????????????? | | ?????????????????????????????????????????????????? | | ????????????????????????###??????????????????????? | | ???????????????????????## ##?????????????????????? | | ???????????????????????# #?????????????????????? | | ???????????????????????# < #?????????????????????? | | ??????????????????????## @ #?????????????????????? | | ??????????????????????# #?????????????????????? | | ??????????????????????# ##?????????????????????? | | ??????????????????????##@ #?????????????????????? | | ??????????????????????# #?????????????????????? | | ??????????????????????# ##?????????????????????? | | ??????????????????????# < #?????????????????????? | | ??????????????????????# ##?????????????????????? | | ??????????????????????## #??????????????????????? | | ???????????????????????####??????????????????????? | | ?????????????????????????????????????????????????? | | ?????????????????????????????????????????????????? | | ?????????????????????????????????????????????????? | | ?????????????????????????????????????????????????? | | ?????????????????????????????????????????????????? | | ?????????????????????????????????????????????????? | | ?????????????????????????????????????????????????? | | ?????????????????????????????????????????????????? | | ?????????????????????????????????????????????????? | | ?????????????????????????????????????????????????? | | ?????????????????????????????????????????????????? | | ?????????????????????????????????????????????????? | | ?????????????????????????????????????????????????? | | ?????????????????????????????????????????????????? | | ?????????????????????????????????????????????????? | +----------------------------------------------------+ Best States ------------- Heat Dissipation 152 Coolant Potential 65 Energy Generation 107 Energy Capacity 2290 Matter Stores 300 Matter Capacity 300 Sight Range 24 Robot Scan Range 16 Terrain Scan Range 16 Terrain Scan Density 10 Cloak Strength 4 Armor Coverage 1200 Resistance: KI 30 Resistance: EX 50 Resistance: EM 75 Propulsion Shielding 66 Utility Shielding 90 Evasion (%) 55 Targeting Accuracy 64 Melee Accuracy 8 Launcher Accuracy 30 Armor Integrity Analysis 40 Recoil Reduction 6 Matter Filtering 50 Energy Filtering 30 Kinecelleration 50 Offensive Hacking 86 Defensive Hacking 45 Item Schematics ----------------- Cld. Q-thruster | -2/Section 7 | Hacked Centrium Leg | -2/Section 7 | Hacked Exp. Core Analyzer | -2/Section 7 | Hacked Robot Schematics ------------------ P-80 Master | -2/Section 7 | Hacked Fabricated ------------ Imp. Launcher Guidance Computer | x2 | -7/Factory | Preloaded Imp. Utility Shielding | x2 | -6/Factory I-47 Archangel | x1 | -6/Factory Med. Reactive Plating | x1 | -6/Factory Med. Reactive Plating | x1 | -6/Factory I-47 Archangel | x1 | -5/Factory Med. Reactive Plating | x1 | -5/Factory Imp. Utility Shielding | x2 | -5/Factory Med. Reactive Plating | x1 | -5/Factory Exp. Utility Shielding | x1 | -4/Factory Exp. Utility Shielding | x1 | -3/Research Exp. Targeting Computer | x1 | -3/Research Exp. Targeting Computer | x1 | -3/Research Exp. Force Field | x1 | -2/Testing Alien Tech Used ----------------- Integrated Reactor Sigix Broadsword Core Stripper Core Reset Matrix Integrity Redistributor High-powered Transdimensional Reconstructor Subatomic Replicator Integrated Singularity Reactor Achievements -------------- None Challenges ------------ None Player 2 | -11 -10 -10 -9 -9 -9 -8 -8 -8 -7 -7 -7 -7 -6 -6 -6 -6 -6 -6 -5 -5 -5 -5 -4 -4 -4 -4 -4 -3 -3 -3 -2 -2 -2 -1 -1 -1 ---------- Run | Scr Mat Min Mat Min Exi Min Mat Sto Fac Low Low Dat Pro Fac Ext Cet Arc Hub Fac Upp Upp Zhi Pro Fac Upp Upp War Pro Res Qua Res Tes Sec Acc Com Ac0 Slots Evolved 18 | . . 2 . . . 2 . 2 . . . . 2 . . . . 2 . . . . 2 . . . . 2 . 2 . . 2 . . . Power 2 | . . . . . . . . . . . . . 1 . . . . . . . . . 1 . . . . . . . . . . . . . Propulsion 3 | . . 1 . . . . . . . . . . . . . . . . . . . . . . . . . . . 1 . . 1 . . . Utility 10 | . . 1 . . . . . 2 . . . . 1 . . . . 1 . . . . 1 . . . . 2 . 1 . . 1 . . . Weapon 3 | . . . . . . 2 . . . . . . . . . . . 1 . . . . . . . . . . . . . . . . . . Parts Attached 244 | . 12 1 16 . . . 6 11 4 1 3 4 2 8 19 3 2 1 10 . 1 . . 8 1 . 10 8 6 9 3 16 4 2 55 18 Parts Lost 47 | . . . . . . . . . . 1 . 4 . 12 7 . . . . . . . . . . . . . . . 1 1 4 . 2 15 Damage Taken 13391 | . 178 124 105 16 . 8 110 174 469 368 . 659 99 2142 1000 69 12 243 68 11 . . 260 104 10 68 35 334 50 382 32 915 846 73 1122 3305 Core 1401 | . 22 34 9 . . . . 45 41 33 . 78 28 455 36 . . 49 . . . . 8 17 . 5 . 42 . . . 67 89 . 29 314 Player 2/Cogmind (%) 60 | . 64 100 23 . . . . 100 100 31 . 45 37 95 52 . . 60 . . . . 22 100 . 100 . 77 . . . 90 88 . 13 72 Absorbed by Shields 6719 | . . . . . . . . . . . . . . 256 218 73 12 264 70 11 . . 274 114 10 77 36 343 52 398 33 939 808 74 1161 1496 Damage Inflicted 56068 | . 386 238 215 59 . 60 464 1162 857 1030 630 1340 520 1462 2077 858 838 1566 793 335 320 . 1083 316 21 298 435 1087 494 2736 976 4754 8986 2002 11816 5854 Player 2/Cogmind (%) 41 | . 48 56 21 68 . 28 40 76 90 76 49 81 76 47 57 39 41 72 40 56 43 . 49 27 11 44 10 70 63 37 36 52 71 56 35 21 Combat Hostiles Destroyed 198 | . 5 2 3 2 . . 4 7 9 5 6 3 7 10 10 7 1 6 6 3 3 . 5 2 1 3 1 4 1 7 3 15 20 3 29 5 Player 2/Cogmind (%) 47 | . 41 50 25 66 . . 44 87 90 50 66 75 87 52 62 53 25 54 54 60 60 . 50 33 33 37 6 57 25 41 37 53 66 17 41 26 Game ------ Seed HeartAerolevNanosword Manual? 0 Play Time 04:21:10 Cumulative 2118.9 hours Start 2021.08.11 @ 22:16:03 End 2021.08.12 @ 03:25:26 Sessions 5 Manual Loads 0 Difficulty Rogue Special Mode AFD2020/Player2 Game No. 2645 Rogue 2637 Adventurer 0 Explorer 8 Win Type - Total 238 Types 45/31/89/3/3/5/59/2/1 Lore% 100 Gallery% 99 Achievement% 100 Wizard Run 0 Options --------- ASCII 0 Keyboard 0 Movement Vi Keybinds 1 Fullscreen 1 Font 18/SmallcapsGlow Map View 76x50 Tactical HUD 1 Map Filters NONE Filters NONE Steam 1 RUN: a010ce86-725b-4e5c-8ed1-f971eac6b5bb